Workbook

Sheet Uebersicht
A6: =IF(YEAR(TODAY())>Hilfe!E1,"Version ist ungültig","Zukunfts-Simulator") -> Zukunfts-Simulator
A8: Wussten Sie, dass …
A10: … der DAX® in den Jahren 2000 bis 2003 ca. 70% und in den darauffolgenden Jahren 2008 bis 2009 ca. 50% verloren hatte?
A11: … der DAX® nach sieben Jahren (2007) oder nach sechs Jahren (2013) die alten Höchststände wieder erreicht hatte?
A12: …, dass Sie ca. 7,7% p.a. erwirtschaftet hätten, wenn Sie am absoluten DAX®-Höchstand (2/2000) mit einem Sparvertrag begonnen und bis 2014 gespart hätten?
A14: Aber wie geht es weiter?
A16: Der heutige DAX® steht bei: | E16: 16000
A17: Niemand kann in die Zukunft schauen. Daher wissen wir heute nicht, ob sich der Aktienindex aufwärts oder abwärts entwickelt. Aus diesem Grund werden verschiedene Kursverläufe per Zufall simuliert, um mögliche Auswirkungen deutlich zu machen.
G18: ="Beispiel- rendite zu Kursverlauf: "&FIXED(Berechnung!O16*100,2)&"%" -> Beispiel- rendite zu Kursverlauf: 3,98%
A19: Für die Simulationen schätzen Sie lediglich drei Dinge: 1) Wie lange soll der Sparvertrag laufen? 2) Wie tief wird der Kurs des DAX® Ihrer Meinung nach in der Laufzeit maximal fallen? 3) Wie hoch wird der Kurs des DAX® am Ende des Sparvertrages sein?
A21: Laufzeit | E21: 30
A22: ="Erwarteter maximaler Rückgang in den "&E21&" Jahren" -> Erwarteter maximaler Rückgang in den 30 Jahren | E22: 0.7
A23: ="DAX® in "&FIXED(E21,0)&" Jahren" -> DAX® in 30 Jahren | E23: 16000
E24: ="(DAX® heute: "&FIXED(E16,0)&" Punkte)" -> (DAX® heute: 16.000 Punkte)
A26: Zur besseren Einschätzung der möglichen DAX®-Werte bei einer bestimmten jährlichen Wertentwicklung finden Sie hier eine Übersicht:
A27: 0.01 | B27: 0.02 | C27: 0.03 | D27: 0.04 | E27: 0.05 | F27: 0.06
A28: =$E$16*(1+A27)^$E$21 -> 21565.58265 | B28: =$E$16*(1+B27)^$E$21 -> 28981.78535 | C28: 38836.19954 | D28: 51894.36016 | E28: 69151.078 | F28: 91895.85877
A30: Da Kurse nicht vorhersehbar sind, werden diese per Zufall simuliert. In der untenstehenden Tabelle sind 60 Wertentwicklungen mit 60 verschiedenen Kursverläufen (die Ihre Vorgaben erfüllen), aufgeführt.
A33: ="Mittelwert der 60 Werte bei einem Rückgang von "&FIXED(E22*100,0)&"%:" -> Mittelwert der 60 Werte bei einem Rückgang von 70%: | F33: =AVERAGE(A40:F49) -> 0.04569479425
A34: ="Mittelwert der 60 Werte bei einem Rückgang von "&FIXED('Berechnung niedrig Rückgang'!M9*100,0)&"%:" -> Mittelwert der 60 Werte bei einem Rückgang von 30%: | F34: =AVERAGE(A52:F61) -> 0.006765776249
A35: Wertentwicklung Ihrer DAX®-Prognose: | F35: =(E23/E16)^(1/E21)-1 -> 0
A37: Um deutlich zu machen, dass starke Rückgänge für Sparverträge sehr positiv sind (denn man kann mit dem Cost-Average-Effekt von Sparplänen günstig einsteigen), werden mit den gleichen Zufallskursen die Renditen bei einem schwächeren Rückgang berechnet.
A38: Gut zu erkennen ist der Effekt, dass je sicherer Sie bei Sparverträgen investieren (kleinerer Rückgang bei Finanzkrisen), desto geringer ist die Renditeerwartung. Selbstverständlich sollte bei Sparverträgen dafür gesorgt werden, dass zum Ablauf kein Kursturz das Kapital gefährdet. Ein Ablaufmanagement sollte deshalb vereinbart werden!
A39: =" 60 Werte bei einem Rückgang von "&FIXED(E22*100,0)&"%:" -> 60 Werte bei einem Rückgang von 70%:
A40: 0.0491292178 | B40: 0.05378597759 | C40: 0.0489302917 | D40: 0.04696574588 | E40: 0.04873068746 | F40: 0.03859444143
A41: 0.04818548104 | B41: 0.0433905013 | C41: 0.04275926044 | D41: 0.05268270941 | E41: 0.04804448283 | F41: 0.03817701773
A42: 0.04864149729 | B42: 0.03793942001 | C42: 0.05153157911 | D42: 0.04761447908 | E42: 0.05320209169 | F42: 0.04733268322
A43: 0.04575666216 | B43: 0.04980874259 | C43: 0.05067362793 | D43: 0.05120510717 | E43: 0.04679391413 | F43: 0.05059469908
A44: 0.05465983187 | B44: 0.04391259476 | C44: 0.04667851699 | D44: 0.04801941951 | E44: 0.04799326783 | F44: 0.04314804285
A45: 0.05053292463 | B45: 0.03967243695 | C45: 0.04424716793 | D45: 0.03565550364 | E45: 0.04827598421 | F45: 0.04820228
A46: 0.04343107449 | B46: 0.04561093796 | C46: 0.04762990342 | D46: 0.04461701096 | E46: 0.03398801593 | F46: 0.04325959024
A47: 0.04743243678 | B47: 0.04822378787 | C47: 0.04963091495 | D47: 0.04422294565 | E47: 0.043110272 | F47: 0.05377364454
A48: 0.03391645041 | B48: 0.03523154725 | C48: 0.03380383109 | D48: 0.03986733977 | E48: 0.04684101346 | F48: 0.05433058625
A49: 0.03920537176 | B49: 0.05272868243 | C49: 0.04141844056 | D49: 0.03932212208 | E49: 0.04878858691 | F49: 0.03983485877
A51: =" 60 Werte bei einem Rückgang von "&FIXED('Berechnung niedrig Rückgang'!M9*100,0)&"%:" -> 60 Werte bei einem Rückgang von 30%:
A52: 0.002213533228 | B52: 0.01345965437 | C52: 0.01044022604 | D52: 0.005503949856 | E52: 0.01488036201 | F52: -0.0004415710123
A53: 0.01195750703 | B53: 0.004740679143 | C53: 0.004539613649 | D53: 0.01585499802 | E53: 0.007623535054 | F53: 0.002796672972
A54: 0.01051143343 | B54: -0.005602290411 | C54: 0.01197857794 | D54: 0.007253807181 | E54: 0.0164654195 | F54: 0.01134355648
A55: 0.006858110266 | B55: 0.01185085641 | C55: 0.01342004172 | D55: 0.01347645837 | E55: 0.01015329567 | F55: 0.01494558469
A56: 0.01363922456 | B56: 0.004276772372 | C56: 0.00830081719 | D56: 0.003332485711 | E56: 3.173854243e-05 | F56: 0.0002416895873
A57: 0.01115898199 | B57: 0.005949887625 | C57: 0.007520508736 | D57: -0.000649244469 | E57: 0.01238941976 | F57: 0.01372655255
A58: 0.003671601007 | B58: 0.004363309676 | C58: 0.01119248516 | D58: 0.0003408287492 | E58: -0.008727336392 | F58: 0.001306611821
A59: 0.007977716139 | B59: 0.01316994151 | C59: 0.009156013328 | D59: 0.00902923036 | E59: -0.0005271723652 | F59: 0.01425734756
A60: -0.001643753348 | B60: 0.002517585804 | C60: 0.006939410695 | D60: -0.005174528488 | E60: 0.009395646758 | F60: 0.0159843667
A61: 0.001031204977 | B61: 0.01426842196 | C61: -0.002210128642 | D61: -0.01172059637 | E61: 0.01371535024 | F61: 0.001490172322
A63: Nutzen Sie extreme Kursschwankungen, um bei Sparverträgen Gewinne zu optimieren. Je geringer die Kursschwankungen sind, desto schwächer ist dieser Effekt!
A65: Helvetia schweizerische Lebensversicherungs-AG Weißadlergasse 2 60311 Frankfurt a.M. T +49 (0)69 1332-575 Aufsichtsratsvorsitzender: Dr. Markus Gemperle Vorstand: Dipl.-Kfm. Volker Steck (Vors.), Dipl.-Kfm. Burkhard Gierse, Alexander Schorn Landesbank Hessen-Thüringen Girozentrale Kto: 15425036, BLZ: 500 500 00 , IBAN: DE97500500000015425036, BIC: HELADEFFXXX Registergericht Frankfurt a.M. HRB 28138, USt-IdNr. DE 811311232
A66: Quelle: Eigene Berechnungen auf Basis Ihrer Angaben und der gesetzlichen Daten. | G66: =Hilfe!E2 -> Stand 1/2022
A67: Für die Richtigkeit der Angaben kann keine Gewähr übernommen werden, denn Programm- und Berechnungsfehler sind trotz sorgfältigstem Vorgehen nicht ausgeschlossen.

Sheet Hilfe (hidden)
A1: =Berechnung!A1 -> Monate | B1: =Berechnung!E1 -> Kurs | D1: Jahr | E1: 2022 | H1: Zelle aus Monaten | J1: =Uebersicht!E21*12+1 -> 361
A2: =Berechnung!A2 -> 1 | B2: =Berechnung!E2 -> 16062.22222 | E2: ="Stand 1/"&E1&"" -> Stand 1/2022
A3: =Berechnung!A3 -> 2 | B3: =Berechnung!E3 -> 15224.76325 | D3: Monatsbeitrag | G3: 100
A4: =Berechnung!A4 -> 3 | B4: =Berechnung!E4 -> 15758.19957 | D4: Volatilität | E4: 0.07 | F4: -0.07
A5: =Berechnung!A5 -> 4 | B5: =Berechnung!E5 -> 15012.07656
A6: =Berechnung!A6 -> 5 | B6: =Berechnung!E6 -> 15782.92396
A7: =Berechnung!A7 -> 6 | B7: =Berechnung!E7 -> 16038.23157
A8: =Berechnung!A8 -> 7 | B8: =Berechnung!E8 -> 15672.23466 | D8: ="Dax® in "&FIXED(Uebersicht!E21,0)&" Jahren" -> Dax® in 30 Jahren | G8: 11400 | H8: Rendite
A9: =Berechnung!A9 -> 8 | B9: =Berechnung!E9 -> 16222.15035 | D9: ='Berechnung niedrig Rückgang'!M8 -> 16000 | G9: ='Berechnung niedrig Rückgang'!O14 -> 37244.89309 | H9: ='Berechnung niedrig Rückgang'!O16 -> 0.002260116241
A10: =Berechnung!A10 -> 9 | B10: =Berechnung!E10 -> 15230.26937 | E10: =Berechnung!M8 -> 16000 | G10: =Berechnung!O14 -> 69124.85783 | H10: =Berechnung!O16 -> 0.03977304432
A11: =Berechnung!A11 -> 10 | B11: =Berechnung!E11 -> 15366.60874 | D11: ='Berechnung niedrig'!M8 -> 12800 | G11: ='Berechnung niedrig'!O14 -> 45333.03116 | H11: ='Berechnung niedrig'!O16 -> 0.014867283
A12: =Berechnung!A12 -> 11 | B12: =Berechnung!E12 -> 15116.58731
A13: =Berechnung!A13 -> 12 | B13: =Berechnung!E13 -> 14891.88637
A14: =Berechnung!A14 -> 13 | B14: =Berechnung!E14 -> 14393.63138
A15: =Berechnung!A15 -> 14 | B15: =Berechnung!E15 -> 14236.44746
A16: =Berechnung!A16 -> 15 | B16: =Berechnung!E16 -> 10237.0005
A17: =Berechnung!A17 -> 16 | B17: =Berechnung!E17 -> 10357.30029
A18: =Berechnung!A18 -> 17 | B18: =Berechnung!E18 -> 10181.35817
A19: =Berechnung!A19 -> 18 | B19: =Berechnung!E19 -> 10529.86494
A20: =Berechnung!A20 -> 19 | B20: =Berechnung!E20 -> 10938.86036
A21: =Berechnung!A21 -> 20 | B21: =Berechnung!E21 -> 11535.30894
A22: =Berechnung!A22 -> 21 | B22: =Berechnung!E22 -> 11464.09783
A23: =Berechnung!A23 -> 22 | B23: =Berechnung!E23 -> 12150.08572
A24: =Berechnung!A24 -> 23 | B24: =Berechnung!E24 -> 11367.54947
A25: =Berechnung!A25 -> 24 | B25: =Berechnung!E25 -> 11913.92142
A26: =Berechnung!A26 -> 25 | B26: =Berechnung!E26 -> 11874.79451
A27: =Berechnung!A27 -> 26 | B27: =Berechnung!E27 -> 11202.72474
A28: =Berechnung!A28 -> 27 | B28: =Berechnung!E28 -> 10465.15958
A29: =Berechnung!A29 -> 28 | B29: =Berechnung!E29 -> 10512.33083
A30: =Berechnung!A30 -> 29 | B30: =Berechnung!E30 -> 10208.78777
A31: =Berechnung!A31 -> 30 | B31: =Berechnung!E31 -> 9908.966766
A32: =Berechnung!A32 -> 31 | B32: =Berechnung!E32 -> 10511.47687
A33: =Berechnung!A33 -> 32 | B33: =Berechnung!E33 -> 11089.36496
A34: =Berechnung!A34 -> 33 | B34: =Berechnung!E34 -> 10611.21256
A35: =Berechnung!A35 -> 34 | B35: =Berechnung!E35 -> 10184.71543
A36: =Berechnung!A36 -> 35 | B36: =Berechnung!E36 -> 10431.26055
A37: =Berechnung!A37 -> 36 | B37: =Berechnung!E37 -> 10502.69336
A38: =Berechnung!A38 -> 37 | B38: =Berechnung!E38 -> 10506.45956
A39: =Berechnung!A39 -> 38 | B39: =Berechnung!E39 -> 10487.07408
A40: =Berechnung!A40 -> 39 | B40: =Berechnung!E40 -> 11026.6517
A41: =Berechnung!A41 -> 40 | B41: =Berechnung!E41 -> 11276.40383
A42: =Berechnung!A42 -> 41 | B42: =Berechnung!E42 -> 11340.36793
A43: =Berechnung!A43 -> 42 | B43: =Berechnung!E43 -> 11710.89644
A44: =Berechnung!A44 -> 43 | B44: =Berechnung!E44 -> 11669.39705
A45: =Berechnung!A45 -> 44 | B45: =Berechnung!E45 -> 11291.26709
A46: =Berechnung!A46 -> 45 | B46: =Berechnung!E46 -> 10883.60433
A47: =Berechnung!A47 -> 46 | B47: =Berechnung!E47 -> 11512.94674
A48: =Berechnung!A48 -> 47 | B48: =Berechnung!E48 -> 10949.33797
A49: =Berechnung!A49 -> 48 | B49: =Berechnung!E49 -> 10696.1423
A50: =Berechnung!A50 -> 49 | B50: =Berechnung!E50 -> 10880.0788
A51: =Berechnung!A51 -> 50 | B51: =Berechnung!E51 -> 11322.57543
A52: =Berechnung!A52 -> 51 | B52: =Berechnung!E52 -> 11598.61001
A53: =Berechnung!A53 -> 52 | B53: =Berechnung!E53 -> 11305.32432
A54: =Berechnung!A54 -> 53 | B54: =Berechnung!E54 -> 10623.7277
A55: =Berechnung!A55 -> 54 | B55: =Berechnung!E55 -> 10981.17586
A56: =Berechnung!A56 -> 55 | B56: =Berechnung!E56 -> 10334.7071
A57: =Berechnung!A57 -> 56 | B57: =Berechnung!E57 -> 10671.71186
A58: =Berechnung!A58 -> 57 | B58: =Berechnung!E58 -> 10176.62556
A59: =Berechnung!A59 -> 58 | B59: =Berechnung!E59 -> 10686.24199
A60: =Berechnung!A60 -> 59 | B60: =Berechnung!E60 -> 11143.86454
A61: =Berechnung!A61 -> 60 | B61: =Berechnung!E61 -> 10308.98291
A62: =Berechnung!A62 -> 61 | B62: =Berechnung!E62 -> 9771.611136
A63: =Berechnung!A63 -> 62 | B63: =Berechnung!E63 -> 9990.554129
A64: =Berechnung!A64 -> 63 | B64: =Berechnung!E64 -> 9282.369932
A65: =Berechnung!A65 -> 64 | B65: =Berechnung!E65 -> 9842.401049
A66: =Berechnung!A66 -> 65 | B66: =Berechnung!E66 -> 10207.3596
A67: =Berechnung!A67 -> 66 | B67: =Berechnung!E67 -> 10089.65987
A68: =Berechnung!A68 -> 67 | B68: =Berechnung!E68 -> 10034.32766
A69: =Berechnung!A69 -> 68 | B69: =Berechnung!E69 -> 9316.026583
A70: =Berechnung!A70 -> 69 | B70: =Berechnung!E70 -> 9268.059837
A71: =Berechnung!A71 -> 70 | B71: =Berechnung!E71 -> 9173.707686
A72: =Berechnung!A72 -> 71 | B72: =Berechnung!E72 -> 8685.1727
A73: =Berechnung!A73 -> 72 | B73: =Berechnung!E73 -> 9162.573526
A74: =Berechnung!A74 -> 73 | B74: =Berechnung!E74 -> 9709.864067
A75: =Berechnung!A75 -> 74 | B75: =Berechnung!E75 -> 9135.891936
A76: =Berechnung!A76 -> 75 | B76: =Berechnung!E76 -> 8966.428924
A77: =Berechnung!A77 -> 76 | B77: =Berechnung!E77 -> 8874.957316
A78: =Berechnung!A78 -> 77 | B78: =Berechnung!E78 -> 8465.733052
A79: =Berechnung!A79 -> 78 | B79: =Berechnung!E79 -> 8987.927332
A80: =Berechnung!A80 -> 79 | B80: =Berechnung!E80 -> 9216.622905
A81: =Berechnung!A81 -> 80 | B81: =Berechnung!E81 -> 8997.565407
A82: =Berechnung!A82 -> 81 | B82: =Berechnung!E82 -> 8756.703901
A83: =Berechnung!A83 -> 82 | B83: =Berechnung!E83 -> 8383.328636
A84: =Berechnung!A84 -> 83 | B84: =Berechnung!E84 -> 8037.120333
A85: =Berechnung!A85 -> 84 | B85: =Berechnung!E85 -> 8118.94528
A86: =Berechnung!A86 -> 85 | B86: =Berechnung!E86 -> 8508.721166
A87: =Berechnung!A87 -> 86 | B87: =Berechnung!E87 -> 8077.390137
A88: =Berechnung!A88 -> 87 | B88: =Berechnung!E88 -> 8194.999877
A89: =Berechnung!A89 -> 88 | B89: =Berechnung!E89 -> 7584.361227
A90: =Berechnung!A90 -> 89 | B90: =Berechnung!E90 -> 7168.55666
A91: =Berechnung!A91 -> 90 | B91: =Berechnung!E91 -> 7532.095544
A92: =Berechnung!A92 -> 91 | B92: =Berechnung!E92 -> 7961.803404
A93: =Berechnung!A93 -> 92 | B93: =Berechnung!E93 -> 7365.069626
A94: =Berechnung!A94 -> 93 | B94: =Berechnung!E94 -> 7503.841996
A95: =Berechnung!A95 -> 94 | B95: =Berechnung!E95 -> 7413.951598
A96: =Berechnung!A96 -> 95 | B96: =Berechnung!E96 -> 7359.574263
A97: =Berechnung!A97 -> 96 | B97: =Berechnung!E97 -> 7462.236952
A98: =Berechnung!A98 -> 97 | B98: =Berechnung!E98 -> 7398.812866
A99: =Berechnung!A99 -> 98 | B99: =Berechnung!E99 -> 6922.74809
A100: =Berechnung!A100 -> 99 | B100: =Berechnung!E100 -> 6446.536047
A101: =Berechnung!A101 -> 100 | B101: =Berechnung!E101 -> 6809.028416
A102: =Berechnung!A102 -> 101 | B102: =Berechnung!E102 -> 6634.50913
A103: =Berechnung!A103 -> 102 | B103: =Berechnung!E103 -> 6152.721261
A104: =Berechnung!A104 -> 103 | B104: =Berechnung!E104 -> 5725.648674
A105: =Berechnung!A105 -> 104 | B105: =Berechnung!E105 -> 5302.210625
A106: =Berechnung!A106 -> 105 | B106: =Berechnung!E106 -> 5533.815283
A107: =Berechnung!A107 -> 106 | B107: =Berechnung!E107 -> 5816.195994
A108: =Berechnung!A108 -> 107 | B108: =Berechnung!E108 -> 5537.208067
A109: =Berechnung!A109 -> 108 | B109: =Berechnung!E109 -> 5837.748544
A110: =Berechnung!A110 -> 109 | B110: =Berechnung!E110 -> 5806.756337
A111: =Berechnung!A111 -> 110 | B111: =Berechnung!E111 -> 5879.459163
A112: =Berechnung!A112 -> 111 | B112: =Berechnung!E112 -> 5447.640398
A113: =Berechnung!A113 -> 112 | B113: =Berechnung!E113 -> 5585.586576
A114: =Berechnung!A114 -> 113 | B114: =Berechnung!E114 -> 5825.673784
A115: =Berechnung!A115 -> 114 | B115: =Berechnung!E115 -> 5902.899231
A116: =Berechnung!A116 -> 115 | B116: =Berechnung!E116 -> 6057.934241
A117: =Berechnung!A117 -> 116 | B117: =Berechnung!E117 -> 5744.463442
A118: =Berechnung!A118 -> 117 | B118: =Berechnung!E118 -> 5540.199476
A119: =Berechnung!A119 -> 118 | B119: =Berechnung!E119 -> 5376.685657
A120: =Berechnung!A120 -> 119 | B120: =Berechnung!E120 -> 5458.448052
A121: =Berechnung!A121 -> 120 | B121: =Berechnung!E121 -> 5450.340176
A122: =Berechnung!A122 -> 121 | B122: =Berechnung!E122 -> 5012.20197
A123: =Berechnung!A123 -> 122 | B123: =Berechnung!E123 -> 4952.583153
A124: =Berechnung!A124 -> 123 | B124: =Berechnung!E124 -> 4961.367438
A125: =Berechnung!A125 -> 124 | B125: =Berechnung!E125 -> 5208.448531
A126: =Berechnung!A126 -> 125 | B126: =Berechnung!E126 -> 5031.755781
A127: =Berechnung!A127 -> 126 | B127: =Berechnung!E127 -> 5174.977623
A128: =Berechnung!A128 -> 127 | B128: =Berechnung!E128 -> 5125.511684
A129: =Berechnung!A129 -> 128 | B129: =Berechnung!E129 -> 5316.672522
A130: =Berechnung!A130 -> 129 | B130: =Berechnung!E130 -> 5050.400329
A131: =Berechnung!A131 -> 130 | B131: =Berechnung!E131 -> 5262.975577
A132: =Berechnung!A132 -> 131 | B132: =Berechnung!E132 -> 5244.335886
A133: =Berechnung!A133 -> 132 | B133: =Berechnung!E133 -> 4900.917328
A134: =Berechnung!A134 -> 133 | B134: =Berechnung!E134 -> 4822.180287
A135: =Berechnung!A135 -> 134 | B135: =Berechnung!E135 -> 4931.170271
A136: =Berechnung!A136 -> 135 | B136: =Berechnung!E136 -> 5196.541969
A137: =Berechnung!A137 -> 136 | B137: =Berechnung!E137 -> 4914.895436
A138: =Berechnung!A138 -> 137 | B138: =Berechnung!E138 -> 4929.749636
A139: =Berechnung!A139 -> 138 | B139: =Berechnung!E139 -> 5020.861103
A140: =Berechnung!A140 -> 139 | B140: =Berechnung!E140 -> 5076.875355
A141: =Berechnung!A141 -> 140 | B141: =Berechnung!E141 -> 4952.355531
A142: =Berechnung!A142 -> 141 | B142: =Berechnung!E142 -> 4895.60966
A143: =Berechnung!A143 -> 142 | B143: =Berechnung!E143 -> 4891.81201
A144: =Berechnung!A144 -> 143 | B144: =Berechnung!E144 -> 4894.840656
A145: =Berechnung!A145 -> 144 | B145: =Berechnung!E145 -> 4800
A146: =Berechnung!A146 -> 145 | B146: =Berechnung!E146 -> 4897.78278
A147: =Berechnung!A147 -> 146 | B147: =Berechnung!E147 -> 4800
A148: =Berechnung!A148 -> 147 | B148: =Berechnung!E148 -> 4800
A149: =Berechnung!A149 -> 148 | B149: =Berechnung!E149 -> 4800
A150: =Berechnung!A150 -> 149 | B150: =Berechnung!E150 -> 4800
A151: =Berechnung!A151 -> 150 | B151: =Berechnung!E151 -> 4800
A152: =Berechnung!A152 -> 151 | B152: =Berechnung!E152 -> 4928.790845
A153: =Berechnung!A153 -> 152 | B153: =Berechnung!E153 -> 4970.135596
A154: =Berechnung!A154 -> 153 | B154: =Berechnung!E154 -> 4835.070339
A155: =Berechnung!A155 -> 154 | B155: =Berechnung!E155 -> 4800
A156: =Berechnung!A156 -> 155 | B156: =Berechnung!E156 -> 4800
A157: =Berechnung!A157 -> 156 | B157: =Berechnung!E157 -> 4800
A158: =Berechnung!A158 -> 157 | B158: =Berechnung!E158 -> 4800
A159: =Berechnung!A159 -> 158 | B159: =Berechnung!E159 -> 4800
A160: =Berechnung!A160 -> 159 | B160: =Berechnung!E160 -> 4800
A161: =Berechnung!A161 -> 160 | B161: =Berechnung!E161 -> 4961.002425
A162: =Berechnung!A162 -> 161 | B162: =Berechnung!E162 -> 5052.249049
A163: =Berechnung!A163 -> 162 | B163: =Berechnung!E163 -> 5006.802503
A164: =Berechnung!A164 -> 163 | B164: =Berechnung!E164 -> 5223.780738
A165: =Berechnung!A165 -> 164 | B165: =Berechnung!E165 -> 4855.930135
A166: =Berechnung!A166 -> 165 | B166: =Berechnung!E166 -> 4800
A167: =Berechnung!A167 -> 166 | B167: =Berechnung!E167 -> 4800
A168: =Berechnung!A168 -> 167 | B168: =Berechnung!E168 -> 4800
A169: =Berechnung!A169 -> 168 | B169: =Berechnung!E169 -> 4800
A170: =Berechnung!A170 -> 169 | B170: =Berechnung!E170 -> 4800
A171: =Berechnung!A171 -> 170 | B171: =Berechnung!E171 -> 4954.051707
A172: =Berechnung!A172 -> 171 | B172: =Berechnung!E172 -> 4800
A173: =Berechnung!A173 -> 172 | B173: =Berechnung!E173 -> 4800
A174: =Berechnung!A174 -> 173 | B174: =Berechnung!E174 -> 4800
A175: =Berechnung!A175 -> 174 | B175: =Berechnung!E175 -> 4800
A176: =Berechnung!A176 -> 175 | B176: =Berechnung!E176 -> 4919.91041
A177: =Berechnung!A177 -> 176 | B177: =Berechnung!E177 -> 5064.178073
A178: =Berechnung!A178 -> 177 | B178: =Berechnung!E178 -> 4800
A179: =Berechnung!A179 -> 178 | B179: =Berechnung!E179 -> 4800
A180: =Berechnung!A180 -> 179 | B180: =Berechnung!E180 -> 4865.309124
A181: =Berechnung!A181 -> 180 | B181: =Berechnung!E181 -> 4800
A182: =Berechnung!A182 -> 181 | B182: =Berechnung!E182 -> 5119.637985
A183: =Berechnung!A183 -> 182 | B183: =Berechnung!E183 -> 5343.081382
A184: =Berechnung!A184 -> 183 | B184: =Berechnung!E184 -> 5711.623305
A185: =Berechnung!A185 -> 184 | B185: =Berechnung!E185 -> 5384.377392
A186: =Berechnung!A186 -> 185 | B186: =Berechnung!E186 -> 5610.882554
A187: =Berechnung!A187 -> 186 | B187: =Berechnung!E187 -> 5925.470138
A188: =Berechnung!A188 -> 187 | B188: =Berechnung!E188 -> 6139.782458
A189: =Berechnung!A189 -> 188 | B189: =Berechnung!E189 -> 5992.783098
A190: =Berechnung!A190 -> 189 | B190: =Berechnung!E190 -> 6283.691307
A191: =Berechnung!A191 -> 190 | B191: =Berechnung!E191 -> 5918.815377
A192: =Berechnung!A192 -> 191 | B192: =Berechnung!E192 -> 6054.439571
A193: =Berechnung!A193 -> 192 | B193: =Berechnung!E193 -> 6046.234993
A194: =Berechnung!A194 -> 193 | B194: =Berechnung!E194 -> 6512.434967
A195: =Berechnung!A195 -> 194 | B195: =Berechnung!E195 -> 6789.186591
A196: =Berechnung!A196 -> 195 | B196: =Berechnung!E196 -> 6889.546744
A197: =Berechnung!A197 -> 196 | B197: =Berechnung!E197 -> 6892.435279
A198: =Berechnung!A198 -> 197 | B198: =Berechnung!E198 -> 7257.191732
A199: =Berechnung!A199 -> 198 | B199: =Berechnung!E199 -> 7190.192027
A200: =Berechnung!A200 -> 199 | B200: =Berechnung!E200 -> 7175.481464
... 401 more rows

Sheet Berechnung niedrig Rückgang (hidden)
A1: Monate | B1: Verlust? | C1: Volatilität | D1: Verlust / Gewinn | E1: Kurs | F1: neue Anteile | G1: Gesamtanteile | H1: Anteilguthaben | I1: Beitrag | L1: Verlust mtl. | M1: =(Uebersicht!E16-'Berechnung niedrig Rückgang'!M2)/(M5/2) -> 26.66666667
A2: 1 | B2: =IF(A2<M11*12/2+1,1,0) -> 1 | C2: =RAND()*($N$6-$M$6)+$M$6 -> 0.02731637433 | D2: =IF(B2=1,-$M$1,$M$4) -> -26.66666667 | E2: =MAX(M7-D2,M2) -> 16026.66667 | F2: =$M$10/E2 -> 0.006239600666 | G2: =F2 -> 0.006239600666 | H2: =G2*E2 -> 100 | I2: =$M$10*A2 -> 100 | L2: Minimalwert | M2: =M7*(1-M9) -> 11200
A3: 2 | B3: =IF(A3<$M$11*12/2+1,1,0) -> 1 | C3: =RAND()*($N$6-$M$6)+$M$6 -> -0.04845229659 | D3: =IF(B3=1,-$M$1,$M$4) -> -26.66666667 | E3: =MAX(IF(A3=$M$5,$M$8,IF(A3=$M$5/2,$M$2,(E2+D3)*(1+C3))),$M$2) -> 15224.76325 | F3: =$M$10/E3 -> 0.006568246634 | G3: =G2+F3 -> 0.0128078473 | H3: =G3*E3 -> 194.9964429 | I3: =$M$10*A3 -> 200 | L3: max. Gewinn | M3: =M8-M2 -> 4800
A4: 3 | B4: =IF(A4<$M$11*12/2+1,1,0) -> 1 | C4: =RAND()*($N$6-$M$6)+$M$6 -> 0.03928487563 | D4: =IF(B4=1,-$M$1,$M$4) -> -26.66666667 | E4: =MAX(IF(A4=$M$5,$M$8,IF(A4=$M$5/2,$M$2,(E3+D4)*(1+C4))),$M$2) -> 15795.15192 | F4: =$M$10/E4 -> 0.006331056548 | G4: =G3+F4 -> 0.01913890385 | H4: 302.3018939 | I4: =$M$10*A4 -> 300 | L4: Gewinn mtl. | M4: =M3/(M5/2) -> 26.66666667
A5: 4 | B5: 1 | C5: -0.04357172387 | D5: -26.66666667 | E5: 15081.42517 | F5: 0.006630673088 | G5: 0.02576957694 | H5: 388.6419462 | I5: 400 | L5: Raten | M5: =Uebersicht!E21*12 -> 360
A6: 5 | B6: 1 | C6: 0.05572426364 | D6: -26.66666667 | E6: 15893.67384 | F6: 0.006291811512 | G6: 0.03206138845 | H6: 509.5732507 | I6: 500 | L6: Volatilität | M6: =Hilfe!E4 -> 0.07 | N6: =Hilfe!F4 -> -0.07
A7: 6 | B7: 1 | C7: 0.02019819681 | D7: -26.66666667 | E7: 16187.4921 | F7: 0.006177609192 | G7: 0.03823899764 | H7: 618.9934723 | I7: 600 | L7: Dax heute | M7: =Uebersicht!E16 -> 16000
A8: 7 | B8: 1 | C8: -0.01901442805 | D8: -26.66666667 | E8: 15853.53658 | F8: 0.00630774083 | G8: 0.04454673847 | H8: 706.223348 | I8: 700 | L8: Dax Zukunft | M8: =Berechnung!M8 -> 16000
A9: 8 | B9: 1 | C9: 0.03921444078 | D9: -26.66666667 | E9: 16447.51177 | F9: 0.00607994701 | G9: 0.05062668548 | H9: 832.6830052 | I9: 800 | L9: Rückgang | M9: =MAX(Uebersicht!E22-40%,0) -> 0.3
A10: 9 | B10: 1 | C10: -0.0575286446 | D10: -26.66666667 | E10: 15476.17614 | F10: 0.006461544447 | G10: 0.05708822992 | H10: 883.5075019 | I10: 900 | L10: Beitrag | M10: =Hilfe!G3 -> 100
A11: 10 | B11: 1 | C11: 0.01309078215 | D11: -26.66666667 | E11: 15651.75564 | F11: 0.006389059625 | G11: 0.06347728955 | H11: 993.5310245 | I11: 1000 | L11: Laufzeit | M11: =Uebersicht!E21 -> 30
A12: 11 | B12: 1 | C12: -0.01227094008 | D12: -26.66666667 | E12: 15433.35444 | F12: 0.00647947278 | G12: 0.06995676233 | H12: 1079.667509 | I12: 1100
A13: 12 | B13: 1 | C13: -0.01079279816 | D13: -26.66666667 | E13: 15240.4065 | F13: 0.006561504773 | G13: 0.0765182671 | H13: 1166.169495 | I13: 1200
A14: 13 | B14: 1 | C14: -0.02940274016 | D14: -26.66666667 | E14: 14766.4142 | F14: 0.006772124815 | G14: 0.08329039192 | H14: 1229.900426 | I14: 1300 | L14: ="Ablauf in "&FIXED(Uebersicht!E21,0)&" Jahren" -> Ablauf in 30 Jahren | O14: =VLOOKUP(M5,A:I,8) -> 37244.89309
A15: 14 | B15: 1 | C15: -0.006626124498 | D15: -26.66666667 | E15: 14642.08013 | F15: 0.006829630704 | G15: 0.09012002262 | H15: 1319.544592 | I15: 1400 | L15: ="Beitragsumme über "&FIXED(Uebersicht!E21,0)&" Jahren" -> Beitragsumme über 30 Jahren | O15: =VLOOKUP(Uebersicht!E21*12,Berechnung!A1:I601,9) -> 36000
A16: 15 | B16: 1 | C16: 0.03066241603 | D16: -26.66666667 | E16: 15063.55735 | F16: 0.006638538141 | G16: 0.09675856076 | H16: 1457.528129 | I16: 1500 | L16: Rendite p.a. | O16: =RATE(M5,-M10,0,O14,0,1%)*12 -> 0.002260116241
A17: 16 | B17: 1 | C17: 0.01793867194 | D17: -26.66666667 | E17: 15306.63253 | F17: 0.006533115615 | G17: 0.1032916764 | H17: 1581.047734 | I17: 1600
A18: 17 | B18: 1 | C18: -0.01104604536 | D18: -26.66666667 | E18: 15111.18267 | F18: 0.006617615722 | G18: 0.1099092921 | H18: 1660.85939 | I18: 1700
A19: 18 | B19: 1 | C19: 0.04058933443 | D19: -26.66666667 | E19: 15696.78647 | F19: 0.006370730736 | G19: 0.1162800228 | H19: 1825.222689 | I19: 1800
A20: 19 | B20: 1 | C20: 0.04501659656 | D20: -26.66666667 | E20: 16375.53526 | F20: 0.006106670616 | G20: 0.1223866935 | H20: 2004.147614 | I20: 1900
A21: 20 | B21: 1 | C21: 0.06055830801 | D21: -26.66666667 | E21: 17338.92841 | F21: 0.005767369102 | G21: 0.1281540626 | H21: 2222.054117 | I21: 2000
A22: 21 | B22: 1 | C22: -0.0007834759181 | D22: -26.66666667 | E22: 17298.69801 | F22: 0.005780781881 | G22: 0.1339348444 | H22: 2316.898426 | I22: 2100
A23: 22 | B23: 1 | C23: 0.06562166937 | D23: -26.66666667 | E23: 18405.45087 | F23: 0.00543317307 | G23: 0.1393680175 | H23: 2565.131199 | I23: 2200
A24: 23 | B24: 1 | C24: -0.05958985509 | D24: -26.66666667 | E24: 17283.59512 | F24: 0.00578583329 | G24: 0.1451538508 | H24: 2508.780387 | I24: 2300
A25: 24 | B25: 1 | C25: 0.05383251329 | D25: -26.66666667 | E25: 18185.91228 | F25: 0.005498761814 | G25: 0.1506526126 | H25: 2739.755198 | I25: 2400
A26: 25 | B26: 1 | C26: 0.001948691659 | D26: -26.66666667 | E26: 18194.63238 | F26: 0.005496126434 | G26: 0.156148739 | H26: 2841.068904 | I26: 2500
A27: 26 | B27: 1 | C27: -0.05162698997 | D27: -26.66666667 | E27: 17230.00833 | F27: 0.005803827721 | G27: 0.1619525668 | H27: 2790.444075 | I27: 2600
A28: 27 | B28: 1 | C28: -0.06062050892 | D28: -26.66666667 | E28: 16160.46634 | F28: 0.006187940243 | G28: 0.168140507 | H28: 2717.229004 | I28: 2700
A29: 28 | B29: 1 | C29: 0.01051563244 | D29: -26.66666667 | E29: 16303.45678 | F29: 0.006133668543 | G29: 0.1742741756 | H29: 2841.271489 | I29: 2800
A30: 29 | B30: 1 | C30: -0.02309266304 | D30: -26.66666667 | E30: 15900.91568 | F30: 0.006288945995 | G30: 0.1805631215 | H30: 2871.118971 | I30: 2900
A31: 30 | B31: 1 | C31: -0.02341667007 | D31: -26.66666667 | E31: 15502.52697 | F31: 0.006450561268 | G31: 0.1870136828 | H31: 2899.184661 | I31: 3000
A32: 31 | B32: 1 | C32: 0.06750782689 | D32: -26.66666667 | E32: 16520.602 | F32: 0.006053048189 | G32: 0.193066731 | H32: 3189.578622 | I32: 3100
A33: 32 | B33: 1 | C33: 0.06125894487 | D33: -26.66666667 | E33: 17504.3364 | F33: 0.005712870096 | G33: 0.1987796011 | H33: 3479.505008 | I33: 3200
A34: 33 | B34: 1 | C34: -0.0377187628 | D34: -26.66666667 | E34: 16818.43366 | F34: 0.005945856911 | G34: 0.204725458 | H34: 3443.161534 | I34: 3300
A35: 34 | B35: 1 | C35: -0.03453173236 | D35: -26.66666667 | E35: 16211.91819 | F35: 0.006168301544 | G35: 0.2108937596 | H35: 3418.992376 | I35: 3400
A36: 35 | B36: 1 | C36: 0.03050309293 | D36: -26.66666667 | E36: 16678.95175 | F36: 0.005995580626 | G36: 0.2168893402 | H36: 3617.486841 | I36: 3500
A37: 36 | B37: 1 | C37: 0.01288981911 | D37: -26.66666667 | E37: 16866.93003 | F37: 0.005928761181 | G37: 0.2228181014 | H37: 3758.257325 | I37: 3600
A38: 37 | B38: 1 | C38: 0.006320444409 | D38: -26.66666667 | E38: 16946.70131 | F38: 0.005900853397 | G38: 0.2287189548 | H38: 3876.031811 | I38: 3700
A39: 38 | B39: 1 | C39: 0.004101471901 | D39: -26.66666667 | E39: 16989.43169 | F39: 0.00588601207 | G39: 0.2346049668 | H39: 3985.805058 | I39: 3800
A40: 39 | B40: 1 | C40: 0.05772742359 | D40: -26.66666667 | E40: 17941.98175 | F40: 0.005573520329 | G40: 0.2401784872 | H40: 4309.278032 | I40: 3900
A41: 40 | B41: 1 | C41: 0.02845331425 | D41: -26.66666667 | E41: 18425.06517 | F41: 0.005427389216 | G41: 0.2456058764 | H41: 4525.304278 | I41: 4000
A42: 41 | B42: 1 | C42: 0.01125238758 | D42: -26.66666667 | E42: 18605.42441 | F42: 0.005374776612 | G42: 0.250980653 | H42: 4669.601568 | I42: 4100
A43: 42 | B43: 1 | C43: 0.03837073495 | D43: -26.66666667 | E43: 19291.63834 | F43: 0.005183592925 | G43: 0.2561642459 | H43: 4941.827987 | I43: 4200
A44: 43 | B44: 1 | C44: 0.001778985899 | D44: -26.66666667 | E44: 19299.24378 | F44: 0.005181550175 | G44: 0.2613457961 | H44: 5043.77623 | I44: 4300
A45: 44 | B45: 1 | C45: -0.02721659202 | D45: -26.66666667 | E45: 18748.04325 | F45: 0.005333889979 | G45: 0.2666796861 | H45: 4999.722288 | I45: 4400
A46: 45 | B46: 1 | C46: -0.03076312677 | D46: -26.66666667 | E46: 18145.4485 | F46: 0.00551102388 | G46: 0.2721907099 | H46: 4939.022509 | I46: 4500
A47: 46 | B47: 1 | C47: 0.06390723684 | D47: -26.66666667 | E47: 19276.70311 | F47: 0.005187609074 | G47: 0.277378319 | H47: 5346.939506 | I47: 4600
A48: 47 | B48: 1 | C48: -0.04378644709 | D48: -26.66666667 | E48: 18407.14575 | F48: 0.005432672799 | G48: 0.2828109918 | H48: 5205.743145 | I48: 4700
A49: 48 | B49: 1 | C49: -0.01754123454 | D49: -26.66666667 | E49: 18058.06278 | F49: 0.005537692564 | G49: 0.2883486844 | H49: 5207.018646 | I49: 4800
A50: 49 | B50: 1 | C50: 0.02314844568 | D50: -26.66666667 | E50: 18448.79491 | F50: 0.005420408242 | G50: 0.2937690926 | H50: 5419.685741 | I50: 4900
A51: 50 | B51: 1 | C51: 0.04665608609 | D51: -26.66666667 | E51: 19281.63265 | F51: 0.005186282813 | G51: 0.2989553754 | H51: 5764.347727 | I51: 5000
A52: 51 | B52: 1 | C52: 0.03003962691 | D52: -26.66666667 | E52: 19833.37797 | F52: 0.005042005458 | G52: 0.3039973809 | H52: 6029.294958 | I52: 5100
A53: 52 | B53: 1 | C53: -0.02002910059 | D53: -26.66666667 | E53: 19410.00069 | F53: 0.005151983329 | G53: 0.3091493642 | H53: 6000.589374 | I53: 5200
A54: 53 | B54: 1 | C54: -0.05508927968 | D54: -26.66666667 | E54: 18315.52012 | F54: 0.005459850409 | G54: 0.3146092146 | H54: 5762.2314 | I54: 5300
A55: 54 | B55: 1 | C55: 0.03973584803 | D55: -26.66666667 | E55: 19015.57655 | F55: 0.005258846595 | G55: 0.3198680612 | H55: 6082.475605 | I55: 5400
A56: 55 | B56: 1 | C56: -0.05350755729 | D56: -26.66666667 | E56: 17972.8597 | F56: 0.00556394484 | G56: 0.3254320061 | H56: 5848.943788 | I56: 5500
A57: 56 | B57: 1 | C57: 0.03886372128 | D57: -26.66666667 | E57: 18643.64888 | F57: 0.005363756883 | G57: 0.330795763 | H57: 6167.240055 | I57: 5600
A58: 57 | B58: 1 | C58: -0.04079970794 | D58: -26.66666667 | E58: 17857.41478 | F58: 0.005599914727 | G58: 0.3363956777 | H58: 6007.157145 | I58: 5700
A59: 58 | B59: 1 | C59: 0.05653706196 | D59: -26.66666667 | E59: 18838.84622 | F59: 0.005308180704 | G59: 0.3417038584 | H59: 6437.306441 | I59: 5800
A60: 59 | B60: 1 | C60: 0.04893108083 | D60: -26.66666667 | E60: 19732.67983 | F60: 0.005067735394 | G60: 0.3467715938 | H60: 6842.732835 | I60: 5900
A61: 60 | B61: 1 | C61: -0.06972426828 | D61: -26.66666667 | E61: 18332.02582 | F61: 0.005454934496 | G61: 0.3522265283 | H61: 6457.02581 | I61: 6000
A62: 61 | B62: 1 | C62: -0.04637070854 | D62: -26.66666667 | E62: 17456.52668 | F62: 0.005728516437 | G62: 0.3579550447 | H62: 6248.651787 | I62: 6100
A63: 62 | B63: 1 | C63: 0.02895807529 | D63: -26.66666667 | E63: 17934.59521 | F63: 0.005575815838 | G63: 0.3635308605 | H63: 6519.778829 | I63: 6200
A64: 63 | B64: 1 | C64: -0.06506248799 | D64: -26.66666667 | E64: 16742.79416 | F64: 0.005972718715 | G64: 0.3695035793 | H64: 6186.522367 | I64: 6300
A65: 64 | B65: 1 | C65: 0.06748843507 | D65: -26.66666667 | E65: 17844.27277 | F65: 0.005604038969 | G65: 0.3751076182 | H65: 6693.522659 | I65: 6400
A66: 65 | B66: 1 | C66: 0.04367821726 | D66: -26.66666667 | E66: 18595.84738 | F66: 0.005377544673 | G66: 0.3804851629 | H66: 7075.444019 | I66: 6500
A67: 66 | B67: 1 | C67: -0.00546838446 | D67: -26.66666667 | E67: 18467.63729 | F67: 0.005414877844 | G67: 0.3859000407 | H67: =G67*E67 -> 7126.661983 | I67: 6600
A68: 67 | B68: =IF(A68<$M$11*12/2+1,1,0) -> 1 | C68: =RAND()*($N$6-$M$6)+$M$6 -> 0.0006871159912 | D68: =IF(B68=1,-$M$1,$M$4) -> -26.66666667 | E68: =MAX(IF(A68=$M$5,$M$8,IF(A68=$M$5/2,$M$2,(E67+D68)*(1+C68))),$M$2) -> 18453.64171 | F68: =$M$10/E68 -> 0.005418984587 | G68: =G67+F68 -> 0.3913190253 | H68: 7221.261088 | I68: =$M$10*A68 -> 6700
A69: 68 | B69: 1 | C69: -0.0657914077 | D69: -26.66666667 | E69: 17214.63842 | F69: 0.005809009611 | G69: 0.3971280349 | H69: 6836.415526 | I69: 6800
A70: 69 | B70: 1 | C70: 0.001540499045 | D70: -26.66666667 | E70: 17214.4498 | F70: 0.005809073258 | G70: 0.4029371082 | H70: 6936.340623 | I70: 6900
A71: 70 | B71: 1 | C71: -0.003490168972 | D71: -26.66666667 | E71: 17127.79487 | F71: 0.005838463198 | G71: 0.4087755714 | H71: 7001.424135 | I71: 7000
A72: 71 | B72: 1 | C72: -0.04678850287 | D72: -26.66666667 | E72: 16300.99202 | F72: 0.006134595974 | G72: 0.4149101674 | H72: 6763.447326 | I72: 7100
A73: 72 | B73: 1 | C73: 0.06257986158 | D73: -26.66666667 | E73: 17292.77038 | F73: 0.005782763422 | G73: 0.4206929308 | H73: 7274.946252 | I73: 7200
A74: 73 | B74: 1 | C74: 0.06697683895 | D74: -26.66666667 | E74: 18422.53276 | F74: 0.005428135279 | G74: 0.4261210661 | H74: 7850.229299 | I74: 7300
A75: 74 | B75: 1 | C75: -0.05304404094 | D75: -26.66666667 | E75: 17420.07502 | F75: 0.005740503408 | G75: 0.4318615695 | H75: 7523.060938 | I75: 7400
A76: 75 | B76: 1 | C76: -0.01181889935 | D76: -26.66666667 | E76: 17187.83741 | F76: 0.005818067603 | G76: 0.4376796371 | H76: 7522.766439 | I76: 7500
A77: 76 | B77: 1 | C77: -0.003284895265 | D77: -26.66666667 | E77: 17104.79809 | F77: 0.005846312798 | G77: 0.4435259499 | H77: 7586.421822 | I77: 7600
A78: 77 | B78: 1 | C78: -0.03937506778 | D78: -26.66666667 | E78: 16405.67884 | F78: 0.006095450298 | G78: 0.4496214002 | H78: 7376.344293 | I78: 7700
A79: 78 | B79: 1 | C79: 0.06954432666 | D79: -26.66666667 | E79: 17518.07955 | F79: 0.00570838828 | G79: 0.4553297885 | H79: 7976.503456 | I79: 7800
A80: 79 | B80: 1 | C80: 0.03259325638 | D80: -26.66666667 | E80: 18061.51499 | F80: 0.005536634112 | G80: 0.4608664226 | H80: 8323.945799 | I80: 7900
A81: 80 | B81: 1 | C81: -0.01713222754 | D81: -26.66666667 | E81: 17725.8712 | F81: 0.00564147166 | G81: 0.4665078942 | H81: 8269.258846 | I81: 8000
A82: 81 | B82: 1 | C82: -0.01999243684 | D82: -26.66666667 | E82: 17345.3543 | F82: 0.00576523248 | G82: 0.4722731267 | H82: 8191.74471 | I82: 8100
A83: 82 | B83: 1 | C83: -0.03578741708 | D83: -26.66666667 | E83: 16698.89654 | F83: 0.005988419641 | G83: 0.4782615464 | H83: 7986.44008 | I83: 8200
A84: 83 | B84: 1 | C84: -0.03412840396 | D84: -26.66666667 | E84: 16103.23327 | F84: 0.006209933017 | G84: 0.4844714794 | H84: 7801.557247 | I84: 8300
A85: 84 | B85: 1 | C85: 0.01806257175 | D85: -26.66666667 | E85: 16366.95075 | F85: 0.006109873583 | G85: 0.490581353 | H85: 8029.320841 | I85: 8400
A86: 85 | B86: 1 | C86: 0.05610197901 | D86: -26.66666667 | E86: 17257.00635 | F86: 0.005794747823 | G86: 0.4963761008 | H86: 8565.965525 | I86: 8500
A87: 86 | B87: 1 | C87: -0.04369962142 | D87: -26.66666667 | E87: 16477.38037 | F87: 0.006068925872 | G87: 0.5024450267 | H87: 8278.977817 | I87: 8600
A88: 87 | B88: 1 | C88: 0.02243645597 | D88: -26.66666667 | E88: 16819.80941 | F88: 0.005945370577 | G88: 0.5083903972 | H88: 8551.029589 | I88: 8700
A89: 88 | B89: 1 | C89: -0.06743285637 | D89: -26.66666667 | E89: 15660.73316 | F89: 0.006385397092 | G89: 0.5147757943 | H89: 8061.766354 | I89: 8800
A90: 89 | B90: 1 | C90: -0.04700555856 | D90: -26.66666667 | E90: 14899.17847 | F90: 0.006711779459 | G90: 0.5214875738 | H90: 7769.736431 | I90: 8900
A91: 90 | B91: 1 | C91: 0.05991290027 | D91: -26.66666667 | E91: 15763.56712 | F91: 0.006343741823 | G91: 0.5278313156 | H91: 8320.50437 | I91: 9000
A92: 91 | B92: 1 | C92: 0.06585521088 | D92: -26.66666667 | E92: 16773.25735 | F92: 0.005961871205 | G92: 0.5337931868 | H92: 8953.450493 | I92: 9100
A93: 92 | B93: 1 | C93: -0.06766327787 | D93: -26.66666667 | E93: 15613.46146 | F93: 0.006404729677 | G93: 0.5401979165 | H93: 8434.359352 | I93: 9200
A94: 93 | B94: 1 | C94: 0.02752277045 | D94: -26.66666667 | E94: 16015.78657 | F94: 0.006243839449 | G94: 0.5464417559 | H94: 8751.694537 | I94: 9300
A95: 94 | B95: 1 | C95: -0.003718031366 | D95: -26.66666667 | E95: 15929.67186 | F95: 0.006277593217 | G95: 0.5527193492 | H95: 8804.637861 | I95: 9400
A96: 95 | B96: 1 | C96: 0.001067080435 | D96: -26.66666667 | E96: 15919.97498 | F96: 0.006281416909 | G96: 0.5590007661 | H96: 8899.278207 | I96: 9500
A97: 96 | B97: 1 | C97: 0.02259517022 | D97: -26.66666667 | E97: 16252.42032 | F97: 0.006152929721 | G97: 0.5651536958 | H97: 9185.115406 | I97: 9600
A98: 97 | B98: 1 | C98: -0.00016241363 | D98: -26.66666667 | E98: 16223.11836 | F98: 0.00616404305 | G98: 0.5713177388 | H98: 9268.555301 | I98: 9700
A99: 98 | B99: 1 | C99: -0.05640802038 | D99: -26.66666667 | E99: 15282.84192 | F99: 0.006543285635 | G99: 0.5778610245 | H99: 8831.358689 | I99: 9800
A100: 99 | B100: 1 | C100: -0.06034374456 | D100: -26.66666667 | E100: 14335.56051 | F100: 0.006975660276 | G100: 0.5848366847 | H100: 8383.961684 | I100: 9900
A101: 100 | B101: 1 | C101: 0.06652470457 | D101: -26.66666667 | E101: 15260.78878 | F101: 0.00655274124 | G101: 0.591389426 | H101: 9025.069117 | I101: 10000
A102: 101 | B102: 1 | C102: -0.01664447752 | D102: -26.66666667 | E102: 14980.55811 | F102: 0.00667531872 | G102: 0.5980647447 | H102: 8959.343662 | I102: 10100
A103: 102 | B103: 1 | C103: -0.06383860779 | D103: -26.66666667 | E103: 13999.25583 | F103: 0.00714323684 | G103: 0.6052079815 | H103: 8472.461366 | I103: 10200
A104: 103 | B104: 1 | C104: -0.05990483909 | D104: -26.66666667 | E104: 13135.56346 | F104: 0.007612920473 | G104: 0.612820902 | H104: 8049.747849 | I104: 10300
A105: 104 | B105: 1 | C105: -0.06378043927 | D105: -26.66666667 | E105: 12272.8056 | F105: 0.008148096146 | G105: 0.6209689982 | H105: 7621.031797 | I105: 10400
A106: 105 | B106: 1 | C106: 0.05607395613 | D106: -26.66666667 | E106: 12932.82839 | F106: 0.007732260646 | G106: 0.6287012588 | H106: 8130.885488 | I106: 10500
A107: 106 | B107: 1 | C107: 0.06298036594 | D107: -26.66666667 | E107: 13718.99651 | F107: 0.007289162872 | G107: 0.6359904217 | H107: 8725.150376 | I107: 10600
A108: 107 | B108: 1 | C108: -0.03767234829 | D108: -26.66666667 | E108: 13176.50763 | F108: 0.007589264382 | G108: 0.6435796861 | H108: 8480.132641 | I108: 10700
A109: 108 | B109: 1 | C109: 0.06625819847 | D109: -26.66666667 | E109: 14021.12573 | F109: 0.007132094949 | G109: 0.650711781 | H109: 9123.711696 | I109: 10800
A110: 109 | B110: 1 | C110: 0.005407302069 | D110: -26.66666667 | E110: 14070.13133 | F110: 0.0071072542 | G110: 0.6578190352 | H110: 9255.600218 | I110: 10900
A111: 110 | B111: 1 | C111: 0.02348755271 | D111: -26.66666667 | E111: 14373.31128 | F111: 0.00695733906 | G111: 0.6647763743 | H111: 9555.03776 | I111: 11000
A112: 111 | B112: 1 | C112: -0.06353472382 | D112: -26.66666667 | E112: 13435.13451 | F112: 0.007443170734 | G112: 0.672219545 | H112: 9031.360008 | I112: 11100
A113: 112 | B113: 1 | C113: 0.03716858993 | D113: -26.66666667 | E113: 13906.84169 | F113: 0.007190705284 | G113: 0.6794102503 | H113: 9448.450792 | I113: 11200
A114: 113 | B114: 1 | C114: 0.05473284245 | D114: -26.66666667 | E114: 14639.87645 | F114: 0.006830658737 | G114: 0.686240909 | H114: 10046.48213 | I114: 11300
A115: 114 | B115: 1 | C115: 0.02419516632 | D115: -26.66666667 | E115: 14966.77883 | F115: 0.006681464405 | G115: 0.6929223734 | H115: 10370.81591 | I115: 11400
A116: 115 | B116: 1 | C116: 0.03719726863 | D116: -26.66666667 | E116: 15495.84353 | F116: 0.006453343429 | G116: 0.6993757169 | H116: 10837.41667 | I116: 11500
A117: 116 | B117: 1 | C117: -0.04190471053 | D117: -26.66666667 | E117: 14820.94548 | F117: 0.00674720787 | G117: 0.7061229247 | H117: 10465.40937 | I117: 11600
A118: 117 | B118: 1 | C118: -0.02499748574 | D118: -26.66666667 | E118: 14424.45904 | F118: 0.006932668997 | G118: 0.7130555937 | H118: 10285.44121 | I118: 11700
A119: 118 | B119: 1 | C119: -0.01849069309 | D119: -26.66666667 | E119: 14131.56721 | F119: 0.007076355968 | G119: 0.7201319497 | H119: 10176.59305 | I119: 11800
A120: 119 | B120: 1 | C120: 0.02709297349 | D120: -26.66666667 | E120: 14487.04424 | F120: 0.006902719306 | G120: 0.727034669 | H120: 10532.58342 | I120: 11900
A121: 120 | B121: 1 | C121: 0.01002818406 | D121: -26.66666667 | E121: 14605.38891 | F121: 0.006846787898 | G121: 0.7338814569 | H121: 10718.62409 | I121: 12000
A122: 121 | B122: 1 | C122: -0.06976758611 | D122: -26.66666667 | E122: 13561.59998 | F122: 0.007373761219 | G122: 0.7412552181 | H122: 10052.60675 | I122: 12100
A123: 122 | B123: 1 | C123: 0.0005259426049 | D123: -26.66666667 | E123: 13542.05191 | F123: 0.007384405307 | G123: 0.7486396234 | H123: 10138.11664 | I123: 12200
A124: 123 | B124: 1 | C124: 0.01451968627 | D124: -26.66666667 | E124: 13711.6244 | F124: 0.00729308192 | G124: 0.7559327053 | H124: 10365.06533 | I124: 12300
A125: 124 | B125: 1 | C125: 0.06313413911 | D125: -26.66666667 | E125: 14548.94576 | F125: 0.006873350253 | G125: 0.7628060556 | H125: 11098.02393 | I125: 12400
A126: 125 | B126: 1 | C126: -0.02224358598 | D126: -26.66666667 | E126: 14199.25153 | F126: 0.007042624734 | G126: 0.7698486803 | H126: 10931.27505 | I126: 12500
A127: 126 | B127: 1 | C127: 0.04134071362 | D127: -26.66666667 | E127: 14758.48963 | F127: 0.006775761104 | G127: 0.7766244414 | H127: 11461.80377 | I127: 12600
A128: 127 | B128: 1 | C128: 0.002494991921 | D128: -26.66666667 | E128: 14768.57874 | F128: 0.006771132262 | G128: 0.7833955737 | H128: 11569.63922 | I128: 12700
A129: 128 | B129: 1 | C129: 0.05004317099 | D129: -26.66666667 | E129: 15479.6441 | F129: 0.006460096842 | G129: 0.7898556705 | H129: 12226.68467 | I129: 12800
A130: 129 | B130: 1 | C130: -0.0388337427 | D130: -26.66666667 | E130: 14852.88049 | F130: 0.006732700777 | G130: 0.7965883713 | H130: 11831.63188 | I130: 12900
A131: 130 | B131: 1 | C131: 0.05508974706 | D131: -26.66666667 | E131: 15642.98619 | F131: 0.006392641327 | G131: 0.8029810126 | H131: =G131*E131 -> 12561.02089 | I131: 13000
A132: 131 | B132: =IF(A132<$M$11*12/2+1,1,0) -> 1 | C132: =RAND()*($N$6-$M$6)+$M$6 -> 0.008380041977 | D132: =IF(B132=1,-$M$1,$M$4) -> -26.66666667 | E132: =MAX(IF(A132=$M$5,$M$8,IF(A132=$M$5/2,$M$2,(E131+D132)*(1+C132))),$M$2) -> 15747.18494 | F132: =$M$10/E132 -> 0.006350341372 | G132: =G131+F132 -> 0.809331354 | H132: 12744.69051 | I132: =$M$10*A132 -> 13100
A133: 132 | B133: 1 | C133: -0.05426286528 | D133: -26.66666667 | E133: 14867.47791 | F133: 0.006726090372 | G133: 0.8160574444 | H133: 12132.71602 | I133: 13200
A134: 133 | B134: 1 | C134: -0.003413072874 | D134: -26.66666667 | E134: 14790.15847 | F134: 0.006761252776 | G134: 0.8228186972 | H134: 12169.61892 | I134: 13300
A135: 134 | B135: 1 | C135: 0.03596926772 | D135: -26.66666667 | E135: 15294.52379 | F135: 0.00653828791 | G135: 0.8293569851 | H135: 12684.62014 | I135: 13400
A136: 135 | B136: 1 | C136: 0.06728227888 | D136: -26.66666667 | E136: 16295.11335 | F136: 0.006136809108 | G136: 0.8354937942 | H136: 13614.46608 | I136: 13500
A137: 136 | B137: 1 | C137: -0.04273678339 | D137: -26.66666667 | E137: 15573.1856 | F137: 0.006421293792 | G137: 0.841915088 | H137: 13111.29992 | I137: 13600
A138: 137 | B138: 1 | C138: 0.01588329137 | D138: -26.66666667 | E138: 15793.44882 | F138: 0.006331739263 | G138: 0.8482468272 | H138: 13396.74285 | I138: 13700
A139: 138 | B139: 1 | C139: 0.03150135082 | D139: -26.66666667 | E139: 16263.45709 | F139: 0.006148754195 | G139: 0.8543955814 | H139: 13895.42588 | I139: 13800
A140: 139 | B140: 1 | C140: 0.02384454233 | D140: -26.66666667 | E140: 16623.94926 | F140: 0.006015417783 | G140: 0.8604109992 | H140: 14303.42879 | I140: 13900
A141: 140 | B141: 1 | C141: -0.01242311296 | D141: -26.66666667 | E141: 16391.09268 | F141: 0.006100874541 | G141: 0.8665118738 | H141: 14203.07643 | I141: 14000
A142: 141 | B142: 1 | C142: 0.001119877742 | D142: -26.66666667 | E142: 16382.75217 | F142: 0.006103980515 | G142: 0.8726158543 | H142: 14295.84928 | I142: 14100
A143: 142 | B143: 1 | C143: 0.01208770731 | D143: -26.66666667 | E143: 16553.79307 | F143: 0.006040911564 | G143: 0.8786567658 | H143: 14545.10228 | I143: 14200
A144: 143 | B144: 1 | C144: 0.01351064391 | D144: -26.66666667 | E144: 16750.41853 | F144: 0.005970000083 | G144: 0.8846267659 | H144: 14817.86857 | I144: 14300
A145: 144 | B145: 1 | C145: -0.01420284136 | D145: -26.66666667 | E145: 16486.22707 | F145: 0.006065669216 | G145: 0.8906924351 | H145: 14684.15773 | I145: 14400
A146: 145 | B146: 1 | C146: 0.03377216273 | D146: -26.66666667 | E146: 17015.43535 | F146: 0.005877016834 | G146: 0.896569452 | H146: 15255.51955 | I146: 14500
A147: 146 | B147: 1 | C147: -0.008754352326 | D147: -26.66666667 | E147: 16840.04302 | F147: 0.005938227111 | G147: 0.9025076791 | H147: 15198.26814 | I147: 14600
A148: 147 | B148: 1 | C148: 0.001960136022 | D148: -26.66666667 | E148: 16846.33286 | F148: 0.005936009983 | G148: 0.9084436891 | H148: 15303.94477 | I148: 14700
A149: 148 | B149: 1 | C149: -0.01787049622 | D149: -26.66666667 | E149: 16519.09041 | F149: 0.006053602077 | G149: 0.9144972911 | H149: 15106.66343 | I149: 14800
A150: 149 | B150: 1 | C150: -0.00427751808 | D150: -26.66666667 | E150: 16421.8771 | F150: 0.006089437851 | G150: 0.920586729 | H150: 15117.76212 | I150: 14900
A151: 150 | B151: 1 | C151: -0.04130001249 | D151: -26.66666667 | E151: 15718.08804 | F151: 0.006362096952 | G151: 0.9269488259 | H151: 14569.86325 | I151: 15000
A152: 151 | B152: 1 | C152: 0.04031701698 | D152: -26.66666667 | E152: 16324.05267 | F152: 0.006125929755 | G152: 0.9330747557 | H152: 15231.56146 | I152: 15100
A153: 152 | B153: 1 | C153: 0.02128131362 | D153: -26.66666667 | E153: 16644.21579 | F153: 0.006008093218 | G153: 0.9390828489 | H153: 15630.29758 | I153: 15200
A154: 153 | B154: 1 | C154: -0.0148419561 | D154: -26.66666667 | E154: 16370.91219 | F154: 0.006108395113 | G154: 0.945191244 | H154: 15473.64286 | I154: 15300
A155: 154 | B155: 1 | C155: -0.02755555048 | D155: -26.66666667 | E155: 15893.87084 | F155: 0.006291733525 | G155: 0.9514829776 | H155: 15122.74755 | I155: 15400
A156: 155 | B156: 1 | C156: -0.0613016851 | D156: -26.66666667 | E156: 14894.51782 | F156: 0.006713879645 | G156: 0.9581968572 | H156: 14271.88016 | I156: 15500
A157: 156 | B157: 1 | C157: 0.006942305703 | D157: -26.66666667 | E157: 14971.06832 | F157: 0.00667955004 | G157: 0.9648764072 | H157: 14445.23061 | I157: 15600
A158: 157 | B158: 1 | C158: -0.03903213507 | D158: -26.66666667 | E158: 14361.08975 | F158: 0.006963259874 | G158: 0.9718396671 | H158: 13956.67668 | I158: 15700
A159: 158 | B159: 1 | C159: -0.0003065438176 | D159: -26.66666667 | E159: 14330.02895 | F159: 0.006978352962 | G159: 0.9788180201 | H159: 14026.49057 | I159: 15800
A160: 159 | B160: 1 | C160: -0.03743361881 | D160: -26.66666667 | E160: 13767.93568 | F160: 0.007263252993 | G160: 0.9860812731 | H160: 13576.30354 | I160: 15900
A161: 160 | B161: 1 | C161: 0.04711589656 | D161: -26.66666667 | E161: 14388.70122 | F161: 0.006949897595 | G161: 0.9930311707 | H161: 14288.42882 | I161: 16000
A162: 161 | B162: 1 | C162: 0.03132797137 | D162: -26.66666667 | E162: 14811.96796 | F162: 0.006751297348 | G162: 0.999782468 | H162: 14808.74588 | I162: 16100
A163: 162 | B163: 1 | C163: 0.003361840749 | D163: -26.66666667 | E163: 14835.00712 | F163: 0.006740812403 | G163: 1.00652328 | H163: 14931.78003 | I163: 16200
A164: 163 | B164: 1 | C164: 0.05646595707 | D164: -26.66666667 | E164: 15644.50757 | F164: 0.006392019662 | G164: 1.0129153 | H164: 15846.56108 | I164: 16300
A165: 164 | B165: 1 | C165: -0.05921242191 | D165: -26.66666667 | E165: 14693.07072 | F165: 0.006805929265 | G165: 1.019721229 | H165: 14982.83614 | I165: 16400
A166: 165 | B166: 1 | C166: -0.01442157783 | D166: -26.66666667 | E166: 14454.89136 | F166: 0.006918073438 | G166: 1.026639303 | H166: 14839.95959 | I166: 16500
A167: 166 | B167: 1 | C167: -0.06011777849 | D167: -26.66666667 | E167: 13560.83188 | F167: 0.007374178876 | G167: 1.034013482 | H167: 14022.08299 | I167: 16600
A168: 167 | B168: 1 | C168: -0.06473298082 | D168: -26.66666667 | E168: 12658.05836 | F168: 0.00790010578 | G168: 1.041913587 | H168: 13188.60299 | I168: 16700
A169: 168 | B169: 1 | C169: 0.01271274324 | D169: -26.66666667 | E169: 12791.97133 | F169: 0.007817403387 | G169: 1.049730991 | H169: 13428.12874 | I169: 16800
A170: 169 | B170: 1 | C170: -0.06732563183 | D170: -26.66666667 | E170: 11905.87246 | F170: 0.008399216464 | G170: 1.058130207 | H170: 12597.9633 | I170: 16900
A171: 170 | B171: 1 | C171: 0.04564881243 | D171: -26.66666667 | E171: 12421.47743 | F171: 0.008050572128 | G171: 1.066180779 | H171: 13243.54049 | I171: 17000
A172: 171 | B172: 1 | C172: -0.06220691789 | D172: -26.66666667 | E172: 11623.76779 | F172: 0.008603062433 | G172: 1.074783842 | H172: 12493.0378 | I172: 17100
A173: 172 | B173: 1 | C173: -0.01517538713 | D173: -26.66666667 | E173: 11421.11062 | F173: 0.00875571591 | G173: 1.083539558 | H173: 12375.22515 | I173: 17200
A174: 173 | B174: 1 | C174: -0.06427763632 | D174: -26.66666667 | E174: 11200 | F174: 0.008928571429 | G174: 1.092468129 | H174: 12235.64305 | I174: 17300
A175: 174 | B175: 1 | C175: -0.008689182503 | D175: -26.66666667 | E175: 11200 | F175: 0.008928571429 | G175: 1.101396701 | H175: 12335.64305 | I175: 17400
A176: 175 | B176: 1 | C176: 0.03844262875 | D176: -26.66666667 | E176: 11602.86564 | F176: 0.008618560545 | G176: 1.110015261 | H176: 12879.35793 | I176: 17500
A177: 176 | B177: 1 | C177: 0.04250785088 | D177: -26.66666667 | E177: 12068.27831 | F177: 0.0082861861 | G177: 1.118301447 | H177: 13495.9731 | I177: 17600
A178: 177 | B178: 1 | C178: -0.06588178478 | D178: -26.66666667 | E178: 11248.28878 | F178: 0.008890241171 | G178: 1.127191688 | H178: 12678.97762 | I178: 17700
A179: 178 | B179: 1 | C179: -0.01995329387 | D179: -26.66666667 | E179: 11200 | F179: 0.008928571429 | G179: 1.13612026 | H179: 12724.54691 | I179: 17800
A180: 179 | B180: 1 | C180: 0.02691796712 | D180: -26.66666667 | E180: 11474.09675 | F180: 0.008715282968 | G180: 1.144835543 | H180: 13135.95378 | I180: 17900
A181: 180 | B181: 1 | C181: 0.04894582094 | D181: -26.66666667 | E181: 11200 | F181: 0.008928571429 | G181: 1.153764114 | H181: 12922.15808 | I181: 18000
A182: 181 | B182: 0 | C182: 0.05294199872 | D182: 26.66666667 | E182: 11821.02884 | F182: 0.008459500553 | G182: 1.162223615 | H182: 13738.67887 | I182: 18100
A183: 182 | B183: 0 | C183: 0.03111260599 | D183: 26.66666667 | E183: 12216.30819 | F183: 0.00818577908 | G183: 1.170409394 | H183: 14298.08186 | I183: 18200
A184: 183 | B184: 0 | C184: 0.05667021199 | D184: 26.66666667 | E184: 12936.78683 | F184: 0.007729894701 | G184: 1.178139289 | H184: 15241.33684 | I184: 18300
A185: 184 | B185: 0 | C185: -0.06745385432 | D185: 26.66666667 | E185: 12089.0186 | F185: 0.008271970069 | G185: 1.186411259 | H185: 14342.54777 | I185: 18400
A186: 185 | B186: 0 | C186: 0.03016247774 | D186: 26.66666667 | E186: 12481.12435 | F186: 0.008012098685 | G186: 1.194423357 | H186: 14907.74645 | I186: 18500
A187: 186 | B187: 0 | C187: 0.04448452324 | D187: 26.66666667 | E187: 13064.19414 | F187: 0.007654509643 | G187: 1.202077867 | H187: 15704.17862 | I187: 18600
A188: 187 | B188: 0 | C188: 0.02540045286 | D188: 26.66666667 | E188: 13423.3746 | F188: 0.007449691527 | G188: 1.209527559 | H188: 16235.9415 | I188: 18700
A189: 188 | B189: 0 | C189: -0.03373450885 | D189: 26.66666667 | E189: 12996.31073 | F189: 0.007694491313 | G189: 1.21722205 | H189: 15819.39598 | I189: 18800
A190: 189 | B190: 0 | C190: 0.03776809018 | D190: 26.66666667 | E190: 13514.83038 | F190: 0.007399278955 | G190: 1.224621329 | H190: 16550.54954 | I190: 18900
A191: 190 | B191: 0 | C191: -0.06730286358 | D191: 26.66666667 | E191: 12630.11552 | F191: 0.007917583957 | G191: 1.232538913 | H191: 15567.10885 | I191: 19000
A192: 191 | B192: 0 | C192: 0.01227244783 | D192: 26.66666667 | E192: 12812.11188 | F192: 0.007805114482 | G192: 1.240344027 | H192: 15891.42645 | I192: 19100
A193: 192 | B193: 0 | C193: -0.01151392749 | D193: 26.66666667 | E193: 12690.95378 | F193: 0.007879628411 | G193: 1.248223656 | H193: 15841.14873 | I193: 19200
A194: 193 | B194: 0 | C194: 0.06613417059 | D194: 26.66666667 | E194: 13558.68973 | F194: 0.007375343929 | G194: 1.255599 | H194: 17024.27726 | I194: 19300
A195: 194 | B195: 0 | C195: 0.03262974725 | D195: 26.66666667 | E195: 14028.64314 | F195: 0.007128273132 | G195: 1.262727273 | H195: =G195*E195 -> 17714.3503 | I195: 19400
A196: 195 | B196: =IF(A196<$M$11*12/2+1,1,0) -> 0 | C196: =RAND()*($N$6-$M$6)+$M$6 -> 0.005566436363 | D196: =IF(B196=1,-$M$1,$M$4) -> 26.66666667 | E196: =MAX(IF(A196=$M$5,$M$8,IF(A196=$M$5/2,$M$2,(E195+D196)*(1+C196))),$M$2) -> 14133.5478 | F196: =$M$10/E196 -> 0.007075364334 | G196: =G195+F196 -> 1.269802637 | H196: 17946.81626 | I196: =$M$10*A196 -> 19500
A197: 196 | B197: 0 | C197: -0.008535048896 | D197: 26.66666667 | E197: 14039.35634 | F197: 0.007122833666 | G197: 1.276925471 | H197: 17927.21171 | I197: 19600
A198: 197 | B198: 0 | C198: 0.04350095325 | D198: 26.66666667 | E198: 14677.90842 | F198: 0.0068129598 | G198: 1.28373843 | H198: 18842.59512 | I198: 19700
A199: 198 | B199: 0 | C199: -0.01765468214 | D199: 26.66666667 | E199: 14444.97049 | F199: 0.006922824806 | G199: 1.290661255 | H199: 18643.56374 | I199: 19800
A200: 199 | B200: 0 | C200: -0.0106078863 | D200: 26.66666667 | E200: 14318.12367 | F200: 0.006984155347 | G200: 1.297645411 | H200: 18579.84747 | I200: 19900
... 401 more rows

Sheet Berechnung (hidden)
A1: Monate | B1: Verlust? | C1: Volatilität | D1: Verlust / Gewinn | E1: Kurs | F1: neue Anteile | G1: Gesamtanteile | H1: Anteilguthaben | I1: Beitrag | L1: Verlust mtl. | M1: =(Uebersicht!E16-Berechnung!M2)/(M5/2) -> 62.22222222
A2: 1 | B2: =IF(A2<M11*12/2+1,1,0) -> 1 | C2: ='Berechnung niedrig Rückgang'!C2 -> 0.02731637433 | D2: =IF(B2=1,-$M$1,$M$4) -> -62.22222222 | E2: =MAX(M7-D2,M2) -> 16062.22222 | F2: =$M$10/E2 -> 0.0062257886 | G2: =F2 -> 0.0062257886 | H2: =G2*E2 -> 100 | I2: =$M$10*A2 -> 100 | L2: Minimalwert | M2: =M7*(1-M9) -> 4800
A3: 2 | B3: =IF(A3<$M$11*12/2+1,1,0) -> 1 | C3: ='Berechnung niedrig Rückgang'!C3 -> -0.04845229659 | D3: =IF(B3=1,-$M$1,$M$4) -> -62.22222222 | E3: =MAX(IF(A3=$M$5,$M$8,IF(A3=$M$5/2,$M$2,(E2+D3)*(1+C3))),$M$2) -> 15224.76325 | F3: =$M$10/E3 -> 0.006568246634 | G3: =G2+F3 -> 0.01279403523 | H3: =G3*E3 -> 194.7861575 | I3: =$M$10*A3 -> 200 | L3: max. Gewinn | M3: =M8-M2 -> 11200
A4: 3 | B4: =IF(A4<$M$11*12/2+1,1,0) -> 1 | C4: ='Berechnung niedrig Rückgang'!C4 -> 0.03928487563 | D4: =IF(B4=1,-$M$1,$M$4) -> -62.22222222 | E4: =MAX(IF(A4=$M$5,$M$8,IF(A4=$M$5/2,$M$2,(E3+D4)*(1+C4))),$M$2) -> 15758.19957 | F4: =$M$10/E4 -> 0.006345902624 | G4: =G3+F4 -> 0.01913993786 | H4: =G4*E4 -> 301.6109605 | I4: =$M$10*A4 -> 300 | L4: Gewinn mtl. | M4: =M3/(M5/2) -> 62.22222222
A5: 4 | B5: 1 | C5: ='Berechnung niedrig Rückgang'!C5 -> -0.04357172387 | D5: -62.22222222 | E5: 15012.07656 | F5: 0.006661303625 | G5: 0.02580124148 | H5: 387.3302124 | I5: 400 | L5: Raten | M5: =Uebersicht!E21*12 -> 360
A6: 5 | B6: 1 | C6: ='Berechnung niedrig Rückgang'!C6 -> 0.05572426364 | D6: -62.22222222 | E6: 15782.92396 | F6: 0.006335961591 | G6: 0.03213720307 | H6: 507.2190324 | I6: 500
A7: 6 | B7: 1 | C7: ='Berechnung niedrig Rückgang'!C7 -> 0.02019819681 | D7: -62.22222222 | E7: 16038.23157 | F7: 0.006235101395 | G7: 0.03837230447 | H7: 615.4239048 | I7: 600 | L7: Dax heute | M7: =Uebersicht!E16 -> 16000
A8: 7 | B8: 1 | C8: ='Berechnung niedrig Rückgang'!C8 -> -0.01901442805 | D8: -62.22222222 | E8: 15672.23466 | F8: 0.006380710993 | G8: 0.04475301546 | H8: 701.3797602 | I8: 700 | L8: Dax Zukunft | M8: =Uebersicht!E23 -> 16000
A9: 8 | B9: 1 | C9: ='Berechnung niedrig Rückgang'!C9 -> 0.03921444078 | D9: -62.22222222 | E9: 16222.15035 | F9: 0.006164410873 | G9: 0.05091742633 | H9: 825.9901454 | I9: 800 | L9: Rückgang | M9: =Uebersicht!E22 -> 0.7
A10: 9 | B10: 1 | C10: ='Berechnung niedrig Rückgang'!C10 -> -0.0575286446 | D10: -62.22222222 | E10: 15230.26937 | F10: 0.006565872054 | G10: 0.05748329839 | H10: 875.4861185 | I10: 900 | L10: Beitrag | M10: =Hilfe!G3 -> 100
A11: 10 | B11: 1 | C11: ='Berechnung niedrig Rückgang'!C11 -> 0.01309078215 | D11: -62.22222222 | E11: 15366.60874 | F11: 0.006507616721 | G11: 0.06399091511 | H11: 983.3233556 | I11: 1000 | L11: Laufzeit | M11: =Uebersicht!E21 -> 30
A12: 11 | B12: 1 | C12: ='Berechnung niedrig Rückgang'!C12 -> -0.01227094008 | D12: -62.22222222 | E12: 15116.58731 | F12: 0.006615249721 | G12: 0.07060616483 | H12: 1067.324255 | I12: 1100
A13: 12 | B13: 1 | C13: ='Berechnung niedrig Rückgang'!C13 -> -0.01079279816 | D13: -62.22222222 | E13: 14891.88637 | F13: 0.006715066013 | G13: 0.07732123084 | H13: 1151.458983 | I13: 1200
A14: 13 | B14: 1 | C14: ='Berechnung niedrig Rückgang'!C14 -> -0.02940274016 | D14: -62.22222222 | E14: 14393.63138 | F14: 0.006947517089 | G14: 0.08426874793 | H14: 1212.933295 | I14: 1300 | L14: ="Ablauf in "&FIXED(Uebersicht!E21,0)&" Jahren" -> Ablauf in 30 Jahren | O14: =VLOOKUP(M5,A:I,8) -> 69124.85783
A15: 14 | B15: 1 | C15: ='Berechnung niedrig Rückgang'!C15 -> -0.006626124498 | D15: -62.22222222 | E15: 14236.44746 | F15: 0.007024224287 | G15: 0.09129297222 | H15: 1299.687602 | I15: 1400 | L15: ="Beitragsumme über "&FIXED(Uebersicht!E21,0)&" Jahren" -> Beitragsumme über 30 Jahren | O15: =VLOOKUP(Uebersicht!E21*12,Berechnung!A1:I601,9) -> 36000
A16: 15 | B16: 1 | C16: ='Berechnung niedrig Rückgang'!C16 -> 0.03066241603 | D16: -62.22222222 | E16: 10237.0005 | F16: 0.009768486384 | G16: 0.1010614586 | H16: 1034.566202 | I16: 1500 | L16: Rendite p.a. | O16: =RATE(M5,-M10,0,O14,0,1%)*12 -> 0.03977304432
A17: 16 | B17: 1 | C17: ='Berechnung niedrig Rückgang'!C17 -> 0.01793867194 | D17: -62.22222222 | E17: 10357.30029 | F17: 0.009655025656 | G17: 0.1107164843 | H17: 1146.723874 | I17: 1600
A18: 17 | B18: 1 | C18: ='Berechnung niedrig Rückgang'!C18 -> -0.01104604536 | D18: -62.22222222 | E18: 10181.35817 | F18: 0.009821872325 | G18: 0.1205383566 | H18: 1227.244181 | I18: 1700
A19: 18 | B19: 1 | C19: ='Berechnung niedrig Rückgang'!C19 -> 0.04058933443 | D19: -62.22222222 | E19: 10529.86494 | F19: 0.009496797974 | G19: 0.1300351546 | H19: 1369.252615 | I19: 1800
A20: 19 | B20: 1 | C20: ='Berechnung niedrig Rückgang'!C20 -> 0.04501659656 | D20: -62.22222222 | E20: 10938.86036 | F20: 0.009141720131 | G20: 0.1391768747 | H20: 1522.436398 | I20: 1900
A21: 20 | B21: 1 | C21: ='Berechnung niedrig Rückgang'!C21 -> 0.06055830801 | D21: -62.22222222 | E21: 11535.30894 | F21: 0.008669035263 | G21: 0.14784591 | H21: 1705.448247 | I21: 2000
A22: 21 | B22: 1 | C22: ='Berechnung niedrig Rückgang'!C22 -> -0.0007834759181 | D22: -62.22222222 | E22: 11464.09783 | F22: 0.008722884386 | G22: 0.1565687943 | H22: 1794.919976 | I22: 2100
A23: 22 | B23: 1 | C23: ='Berechnung niedrig Rückgang'!C23 -> 0.06562166937 | D23: -62.22222222 | E23: 12150.08572 | F23: 0.008230394606 | G23: 0.1647991889 | H23: 2002.324273 | I23: 2200
A24: 23 | B24: 1 | C24: ='Berechnung niedrig Rückgang'!C24 -> -0.05958985509 | D24: -62.22222222 | E24: 11367.54947 | F24: 0.008796970736 | G24: 0.1735961597 | H24: 1973.362933 | I24: 2300
A25: 24 | B25: 1 | C25: ='Berechnung niedrig Rückgang'!C25 -> 0.05383251329 | D25: -62.22222222 | E25: 11913.92142 | F25: 0.008393542012 | G25: 0.1819897017 | H25: 2168.211006 | I25: 2400
A26: 25 | B26: 1 | C26: ='Berechnung niedrig Rückgang'!C26 -> 0.001948691659 | D26: -62.22222222 | E26: 11874.79451 | F26: 0.008421198356 | G26: 0.1904109 | H26: 2261.09031 | I26: 2500
A27: 26 | B27: 1 | C27: ='Berechnung niedrig Rückgang'!C27 -> -0.05162698997 | D27: -62.22222222 | E27: 11202.72474 | F27: 0.008926399814 | G27: 0.1993372999 | H27: 2233.1209 | I27: 2600
A28: 27 | B28: 1 | C28: ='Berechnung niedrig Rückgang'!C28 -> -0.06062050892 | D28: -62.22222222 | E28: 10465.15958 | F28: 0.009555516016 | G28: 0.2088928159 | H28: 2186.096654 | I28: 2700
A29: 28 | B29: 1 | C29: ='Berechnung niedrig Rückgang'!C29 -> 0.01051563244 | D29: -62.22222222 | E29: 10512.33083 | F29: 0.009512638221 | G29: 0.2184054541 | H29: 2295.950388 | I29: 2800
A30: 29 | B30: 1 | C30: ='Berechnung niedrig Rückgang'!C30 -> -0.02309266304 | D30: -62.22222222 | E30: 10208.78777 | F30: 0.009795482313 | G30: 0.2282009364 | H30: 2329.654928 | I30: 2900
A31: 30 | B31: 1 | C31: ='Berechnung niedrig Rückgang'!C31 -> -0.02341667007 | D31: -62.22222222 | E31: 9908.966766 | F31: 0.01009186955 | G31: 0.238292806 | H31: 2361.235495 | I31: 3000
A32: 31 | B32: 1 | C32: ='Berechnung niedrig Rückgang'!C32 -> 0.06750782689 | D32: -62.22222222 | E32: 10511.47687 | F32: 0.00951341103 | G32: 0.247806217 | H32: 2604.809318 | I32: 3100
A33: 32 | B33: 1 | C33: ='Berechnung niedrig Rückgang'!C33 -> 0.06125894487 | D33: -62.22222222 | E33: 11089.36496 | F33: 0.009017648922 | G33: 0.2568238659 | H33: 2848.01358 | I33: 3200
A34: 33 | B34: 1 | C34: ='Berechnung niedrig Rückgang'!C34 -> -0.0377187628 | D34: -62.22222222 | E34: 10611.21256 | F34: 0.009423993671 | G34: 0.2662478596 | H34: 2825.212631 | I34: 3300
A35: 34 | B35: 1 | C35: ='Berechnung niedrig Rückgang'!C35 -> -0.03453173236 | D35: -62.22222222 | E35: 10184.71543 | F35: 0.009818634672 | G35: 0.2760664943 | H35: 2811.658683 | I35: 3400
A36: 35 | B36: 1 | C36: ='Berechnung niedrig Rückgang'!C36 -> 0.03050309293 | D36: -62.22222222 | E36: 10431.26055 | F36: 0.00958656909 | G36: 0.2856530633 | H36: 2979.721532 | I36: 3500
A37: 36 | B37: 1 | C37: ='Berechnung niedrig Rückgang'!C37 -> 0.01288981911 | D37: -62.22222222 | E37: 10502.69336 | F37: 0.009521367193 | G37: 0.2951744305 | H37: 3100.126532 | I37: 3600
A38: 37 | B38: 1 | C38: ='Berechnung niedrig Rückgang'!C38 -> 0.006320444409 | D38: -62.22222222 | E38: 10506.45956 | F38: 0.009517954118 | G38: 0.3046923847 | H38: 3201.238216 | I38: 3700
A39: 38 | B39: 1 | C39: ='Berechnung niedrig Rückgang'!C39 -> 0.004101471901 | D39: -62.22222222 | E39: 10487.07408 | F39: 0.009535548165 | G39: 0.3142279328 | H39: 3295.331609 | I39: 3800
A40: 39 | B40: 1 | C40: ='Berechnung niedrig Rückgang'!C40 -> 0.05772742359 | D40: -62.22222222 | E40: 11026.6517 | F40: 0.009068936133 | G40: 0.323296869 | H40: 3564.881969 | I40: 3900
A41: 40 | B41: 1 | C41: ='Berechnung niedrig Rückgang'!C41 -> 0.02845331425 | D41: -62.22222222 | E41: 11276.40383 | F41: 0.008868075451 | G41: 0.3321649444 | H41: 3745.626052 | I41: 4000
A42: 41 | B42: 1 | C42: ='Berechnung niedrig Rückgang'!C42 -> 0.01125238758 | D42: -62.22222222 | E42: 11340.36793 | F42: 0.008818056049 | G42: 0.3409830005 | H42: 3866.872682 | I42: 4100
A43: 42 | B43: 1 | C43: ='Berechnung niedrig Rückgang'!C43 -> 0.03837073495 | D43: -62.22222222 | E43: 11710.89644 | F43: 0.008539055953 | G43: 0.3495220564 | H43: 4093.216608 | I43: 4200
A44: 43 | B44: 1 | C44: ='Berechnung niedrig Rückgang'!C44 -> 0.001778985899 | D44: -62.22222222 | E44: 11669.39705 | F44: 0.008569423045 | G44: 0.3580914795 | H44: 4178.711654 | I44: 4300
A45: 44 | B45: 1 | C45: ='Berechnung niedrig Rückgang'!C45 -> -0.02721659202 | D45: -62.22222222 | E45: 11291.26709 | F45: 0.008856401965 | G45: 0.3669478814 | H45: 4143.306536 | I45: 4400
A46: 45 | B46: 1 | C46: ='Berechnung niedrig Rückgang'!C46 -> -0.03076312677 | D46: -62.22222222 | E46: 10883.60433 | F46: 0.009188132621 | G46: 0.376136014 | H46: 4093.715552 | I46: 4500
A47: 46 | B47: 1 | C47: ='Berechnung niedrig Rückgang'!C47 -> 0.06390723684 | D47: -62.22222222 | E47: 11512.94674 | F47: 0.008685873587 | G47: 0.3848218876 | H47: 4430.433897 | I47: 4600
A48: 47 | B48: 1 | C48: ='Berechnung niedrig Rückgang'!C48 -> -0.04378644709 | D48: -62.22222222 | E48: 10949.33797 | F48: 0.009132972261 | G48: 0.3939548599 | H48: 4313.544908 | I48: 4700
A49: 48 | B49: 1 | C49: ='Berechnung niedrig Rückgang'!C49 -> -0.01754123454 | D49: -62.22222222 | E49: 10696.1423 | F49: 0.009349165071 | G49: 0.403304025 | H49: 4313.797242 | I49: 4800
A50: 49 | B50: 1 | C50: ='Berechnung niedrig Rückgang'!C50 -> 0.02314844568 | D50: -62.22222222 | E50: 10880.0788 | F50: 0.009191109902 | G50: 0.4124951349 | H50: 4487.979572 | I50: 4900
A51: 50 | B51: 1 | C51: ='Berechnung niedrig Rückgang'!C51 -> 0.04665608609 | D51: -62.22222222 | E51: 11322.57543 | F51: 0.008831912903 | G51: 0.4213270478 | H51: 4770.507277 | I51: 5000
A52: 51 | B52: 1 | C52: ='Berechnung niedrig Rückgang'!C52 -> 0.03003962691 | D52: -62.22222222 | E52: 11598.61001 | F52: 0.008621722766 | G52: 0.4299487705 | H52: 4986.808115 | I52: 5100
A53: 52 | B53: 1 | C53: ='Berechnung niedrig Rückgang'!C53 -> -0.02002910059 | D53: -62.22222222 | E53: 11305.32432 | F53: 0.008845389763 | G53: 0.4387941603 | H53: 4960.710292 | I53: 5200
A54: 53 | B54: 1 | C54: ='Berechnung niedrig Rückgang'!C54 -> -0.05508927968 | D54: -62.22222222 | E54: 10623.7277 | F54: 0.00941289186 | G54: 0.4482070522 | H54: 4761.629676 | I54: 5300
A55: 54 | B55: 1 | C55: ='Berechnung niedrig Rückgang'!C55 -> 0.03973584803 | D55: -62.22222222 | E55: 10981.17586 | F55: 0.009106492903 | G55: 0.4573135451 | H55: 5021.840459 | I55: 5400
A56: 55 | B56: 1 | C56: ='Berechnung niedrig Rückgang'!C56 -> -0.05350755729 | D56: -62.22222222 | E56: 10334.7071 | F56: 0.009676132963 | G56: 0.466989678 | H56: 4826.201539 | I56: 5500
A57: 56 | B57: 1 | C57: ='Berechnung niedrig Rückgang'!C57 -> 0.03886372128 | D57: -62.22222222 | E57: 10671.71186 | F57: 0.009370567842 | G57: 0.4763602459 | H57: 5083.579287 | I57: 5600
A58: 57 | B58: 1 | C58: ='Berechnung niedrig Rückgang'!C58 -> -0.04079970794 | D58: -62.22222222 | E58: 10176.62556 | F58: 0.009826439952 | G58: 0.4861866858 | H58: 4947.739855 | I58: 5700
A59: 58 | B59: 1 | C59: ='Berechnung niedrig Rückgang'!C59 -> 0.05653706196 | D59: -62.22222222 | E59: 10686.24199 | F59: 0.009357826644 | G59: 0.4955445125 | H59: 5295.508576 | I59: 5800
A60: 59 | B60: 1 | C60: ='Berechnung niedrig Rückgang'!C60 -> 0.04893108083 | D60: -62.22222222 | E60: 11143.86454 | F60: 0.008973547702 | G60: 0.5045180602 | H60: 5622.280918 | I60: 5900
A61: 60 | B61: 1 | C61: ='Berechnung niedrig Rückgang'!C61 -> -0.06972426828 | D61: -62.22222222 | E61: 10308.98291 | F61: 0.009700277986 | G61: 0.5142183381 | H61: 5301.068061 | I61: 6000
A62: 61 | B62: 1 | C62: ='Berechnung niedrig Rückgang'!C62 -> -0.04637070854 | D62: -62.22222222 | E62: 9771.611136 | F62: 0.01023372693 | G62: 0.5244520651 | H62: 5124.74164 | I62: 6100
A63: 62 | B63: 1 | C63: ='Berechnung niedrig Rückgang'!C63 -> 0.02895807529 | D63: -62.22222222 | E63: 9990.554129 | F63: 0.0100094548 | G63: 0.5344615199 | H63: 5339.566744 | I63: 6200
A64: 63 | B64: 1 | C64: ='Berechnung niedrig Rückgang'!C64 -> -0.06506248799 | D64: -62.22222222 | E64: 9282.369932 | F64: 0.01077311083 | G64: 0.5452346307 | H64: 5061.069542 | I64: 6300
A65: 64 | B65: 1 | C65: ='Berechnung niedrig Rückgang'!C65 -> 0.06748843507 | D65: -62.22222222 | E65: 9842.401049 | F65: 0.01016012246 | G65: 0.5553947532 | H65: 5466.417901 | I65: 6400
A66: 65 | B66: 1 | C66: ='Berechnung niedrig Rückgang'!C66 -> 0.04367821726 | D66: -62.22222222 | E66: 10207.3596 | F66: 0.009796852848 | G66: 0.565191606 | H66: 5769.113967 | I66: 6500
A67: 66 | B67: 1 | C67: ='Berechnung niedrig Rückgang'!C67 -> -0.00546838446 | D67: -62.22222222 | E67: 10089.65987 | F67: 0.009911136877 | G67: 0.5751027429 | H67: 5802.591066 | I67: 6600
A68: 67 | B68: =IF(A68<$M$11*12/2+1,1,0) -> 1 | C68: ='Berechnung niedrig Rückgang'!C68 -> 0.0006871159912 | D68: =IF(B68=1,-$M$1,$M$4) -> -62.22222222 | E68: =MAX(IF(A68=$M$5,$M$8,IF(A68=$M$5/2,$M$2,(E67+D68)*(1+C68))),$M$2) -> 10034.32766 | F68: =$M$10/E68 -> 0.009965789776 | G68: =G67+F68 -> 0.5850685327 | H68: =G68*E68 -> 5870.76936 | I68: =$M$10*A68 -> 6700
A69: 68 | B69: 1 | C69: ='Berechnung niedrig Rückgang'!C69 -> -0.0657914077 | D69: -62.22222222 | E69: 9316.026583 | F69: 0.01073419007 | G69: 0.5958027227 | H69: 5550.514003 | I69: 6800
A70: 69 | B70: 1 | C70: ='Berechnung niedrig Rückgang'!C70 -> 0.001540499045 | D70: -62.22222222 | E70: 9268.059837 | F70: 0.01078974475 | G70: 0.6065924675 | H70: 5621.935286 | I70: 6900
A71: 70 | B71: 1 | C71: ='Berechnung niedrig Rückgang'!C71 -> -0.003490168972 | D71: -62.22222222 | E71: 9173.707686 | F71: 0.01090071795 | G71: 0.6174931854 | H71: 5664.701981 | I71: 7000
A72: 71 | B72: 1 | C72: ='Berechnung niedrig Rückgang'!C72 -> -0.04678850287 | D72: -62.22222222 | E72: 8685.1727 | F72: 0.01151387583 | G72: 0.6290070613 | H72: 5463.034957 | I72: 7100
A73: 72 | B73: 1 | C73: ='Berechnung niedrig Rückgang'!C73 -> 0.06257986158 | D73: -62.22222222 | E73: 9162.573526 | F73: 0.01091396426 | G73: 0.6399210255 | H73: 5863.323447 | I73: 7200
A74: 73 | B74: 1 | C74: ='Berechnung niedrig Rückgang'!C74 -> 0.06697683895 | D74: -62.22222222 | E74: 9709.864067 | F74: 0.01029880535 | G74: 0.6502198309 | H74: 6313.546171 | I74: 7300
A75: 74 | B75: 1 | C75: ='Berechnung niedrig Rückgang'!C75 -> -0.05304404094 | D75: -62.22222222 | E75: 9135.891936 | F75: 0.01094583875 | G75: 0.6611656696 | H75: 6040.338109 | I75: 7400
A76: 75 | B76: 1 | C76: ='Berechnung niedrig Rückgang'!C76 -> -0.01181889935 | D76: -62.22222222 | E76: 8966.428924 | F76: 0.01115271206 | G76: 0.6723183817 | H76: 6028.294984 | I76: 7500
A77: 76 | B77: 1 | C77: ='Berechnung niedrig Rückgang'!C77 -> -0.003284895265 | D77: -62.22222222 | E77: 8874.957316 | F77: 0.01126765983 | G77: 0.6835860415 | H77: 6066.79694 | I77: 7600
A78: 77 | B78: 1 | C78: ='Berechnung niedrig Rückgang'!C78 -> -0.03937506778 | D78: -62.22222222 | E78: 8465.733052 | F78: 0.01181232616 | G78: 0.6953983677 | H78: 5887.056945 | I78: 7700
A79: 78 | B79: 1 | C79: ='Berechnung niedrig Rückgang'!C79 -> 0.06954432666 | D79: -62.22222222 | E79: 8987.927332 | F79: 0.01112603566 | G79: 0.7065244033 | H79: 6350.189995 | I79: 7800
A80: 79 | B80: 1 | C80: ='Berechnung niedrig Rückgang'!C80 -> 0.03259325638 | D80: -62.22222222 | E80: 9216.622905 | F80: 0.0108499611 | G80: 0.7173743644 | H80: 6611.768998 | I80: 7900
A81: 80 | B81: 1 | C81: ='Berechnung niedrig Rückgang'!C81 -> -0.01713222754 | D81: -62.22222222 | E81: 8997.565407 | F81: 0.01111411759 | G81: 0.728488482 | H81: 6554.622765 | I81: 8000
A82: 81 | B82: 1 | C82: ='Berechnung niedrig Rückgang'!C82 -> -0.01999243684 | D82: -62.22222222 | E82: 8756.703901 | F82: 0.01141982202 | G82: 0.739908304 | H82: 6479.157932 | I82: 8100
A83: 82 | B83: 1 | C83: ='Berechnung niedrig Rückgang'!C83 -> -0.03578741708 | D83: -62.22222222 | E83: 8383.328636 | F83: 0.01192843611 | G83: 0.7518367401 | H83: 6302.894473 | I83: 8200
A84: 83 | B84: 1 | C84: ='Berechnung niedrig Rückgang'!C84 -> -0.03412840396 | D84: -62.22222222 | E84: 8037.120333 | F84: 0.01244226736 | G84: 0.7642790075 | H84: 6142.602351 | I84: 8300
A85: 84 | B85: 1 | C85: ='Berechnung niedrig Rückgang'!C85 -> 0.01806257175 | D85: -62.22222222 | E85: 8118.94528 | F85: 0.01231687079 | G85: 0.7765958783 | H85: 6305.139441 | I85: 8400
A86: 85 | B86: 1 | C86: ='Berechnung niedrig Rückgang'!C86 -> 0.05610197901 | D86: -62.22222222 | E86: 8508.721166 | F86: 0.01175264744 | G86: 0.7883485257 | H86: 6707.837787 | I86: 8500
A87: 86 | B87: 1 | C87: ='Berechnung niedrig Rückgang'!C87 -> -0.04369962142 | D87: -62.22222222 | E87: 8077.390137 | F87: 0.01238023647 | G87: 0.8007287622 | H87: 6467.798607 | I87: 8600
A88: 87 | B88: 1 | C88: ='Berechnung niedrig Rückgang'!C88 -> 0.02243645597 | D88: -62.22222222 | E88: 8194.999877 | F88: 0.01220256272 | G88: 0.8129313249 | H88: 6661.972108 | I88: 8700
A89: 88 | B89: 1 | C89: ='Berechnung niedrig Rückgang'!C89 -> -0.06743285637 | D89: -62.22222222 | E89: 7584.361227 | F89: 0.013185026 | G89: 0.8261163509 | H89: 6265.564821 | I89: 8800
A90: 89 | B90: 1 | C90: ='Berechnung niedrig Rückgang'!C90 -> -0.04700555856 | D90: -62.22222222 | E90: 7168.55666 | F90: 0.01394980953 | G90: 0.8400661605 | H90: 6022.061869 | I90: 8900
A91: 90 | B91: 1 | C91: ='Berechnung niedrig Rückgang'!C91 -> 0.05991290027 | D91: -62.22222222 | E91: 7532.095544 | F91: 0.01327651773 | G91: 0.8533426782 | H91: 6427.458584 | I91: 9000
A92: 91 | B92: 1 | C92: ='Berechnung niedrig Rückgang'!C92 -> 0.06585521088 | D92: -62.22222222 | E92: 7961.803404 | F92: 0.0125599685 | G92: 0.8659026467 | H92: 6894.14664 | I92: 9100
A93: 92 | B93: 1 | C93: ='Berechnung niedrig Rückgang'!C93 -> -0.06766327787 | D93: -62.22222222 | E93: 7365.069626 | F93: 0.01357760416 | G93: 0.8794802509 | H93: 6477.433282 | I93: 9200
A94: 93 | B94: 1 | C94: ='Berechnung niedrig Rückgang'!C94 -> 0.02752277045 | D94: -62.22222222 | E94: 7503.841996 | F94: 0.01332650662 | G94: 0.8928067575 | H94: 6699.480841 | I94: 9300
A95: 94 | B95: 1 | C95: ='Berechnung niedrig Rückgang'!C95 -> -0.003718031366 | D95: -62.22222222 | E95: 7413.951598 | F95: 0.01348808374 | G95: 0.9062948412 | H95: 6719.226086 | I95: 9400
A96: 95 | B96: 1 | C96: ='Berechnung niedrig Rückgang'!C96 -> 0.001067080435 | D96: -62.22222222 | E96: 7359.574263 | F96: 0.0135877425 | G96: 0.9198825837 | H96: 6769.944188 | I96: 9500
A97: 96 | B97: 1 | C97: ='Berechnung niedrig Rückgang'!C97 -> 0.02259517022 | D97: -62.22222222 | E97: 7462.236952 | F97: 0.01340080738 | G97: 0.9332833911 | H97: 6964.381808 | I97: 9600
A98: 97 | B98: 1 | C98: ='Berechnung niedrig Rückgang'!C98 -> -0.00016241363 | D98: -62.22222222 | E98: 7398.812866 | F98: 0.01351568175 | G98: 0.9467990728 | H98: 7005.189162 | I98: 9700
A99: 98 | B99: 1 | C99: ='Berechnung niedrig Rückgang'!C99 -> -0.05640802038 | D99: -62.22222222 | E99: 6922.74809 | F99: 0.01444513056 | G99: 0.9612442034 | H99: 6654.451473 | I99: 9800
A100: 99 | B100: 1 | C100: ='Berechnung niedrig Rückgang'!C100 -> -0.06034374456 | D100: -62.22222222 | E100: 6446.536047 | F100: 0.01551220675 | G100: 0.9767564102 | H100: 6296.695407 | I100: 9900
A101: 100 | B101: 1 | C101: ='Berechnung niedrig Rückgang'!C101 -> 0.06652470457 | D101: -62.22222222 | E101: 6809.028416 | F101: 0.01468638312 | G101: 0.9914427933 | H101: 6750.762152 | I101: 10000
A102: 101 | B102: 1 | C102: ='Berechnung niedrig Rückgang'!C102 -> -0.01664447752 | D102: -62.22222222 | E102: 6634.50913 | F102: 0.01507270516 | G102: 1.006515498 | H102: 6677.736263 | I102: 10100
A103: 102 | B103: 1 | C103: ='Berechnung niedrig Rückgang'!C103 -> -0.06383860779 | D103: -62.22222222 | E103: 6152.721261 | F103: 0.01625297096 | G103: 1.022768469 | H103: 6292.809307 | I103: 10200
A104: 103 | B104: 1 | C104: ='Berechnung niedrig Rückgang'!C104 -> -0.05990483909 | D104: -62.22222222 | E104: 5725.648674 | F104: 0.01746527 | G104: 1.040233739 | H104: 5956.012931 | I104: 10300
A105: 104 | B105: 1 | C105: ='Berechnung niedrig Rückgang'!C105 -> -0.06378043927 | D105: -62.22222222 | E105: 5302.210625 | F105: 0.01886005802 | G105: 1.059093797 | H105: 5615.538385 | I105: 10400
A106: 105 | B106: 1 | C106: ='Berechnung niedrig Rückgang'!C106 -> 0.05607395613 | D106: -62.22222222 | E106: 5533.815283 | F106: 0.01807071521 | G106: 1.077164513 | H106: 5960.829442 | I106: 10500
A107: 106 | B107: 1 | C107: ='Berechnung niedrig Rückgang'!C107 -> 0.06298036594 | D107: -62.22222222 | E107: 5816.195994 | F107: 0.01719336833 | G107: 1.094357881 | H107: 6364.999923 | I107: 10600
A108: 107 | B108: 1 | C108: ='Berechnung niedrig Rückgang'!C108 -> -0.03767234829 | D108: -62.22222222 | E108: 5537.208067 | F108: 0.01805964284 | G108: 1.112417524 | H108: 6159.687287 | I108: 10700
A109: 108 | B109: 1 | C109: ='Berechnung niedrig Rückgang'!C109 -> 0.06625819847 | D109: -62.22222222 | E109: 5837.748544 | F109: 0.01712989164 | G109: 1.129547415 | H109: 6594.01378 | I109: 10800
A110: 109 | B110: 1 | C110: ='Berechnung niedrig Rückgang'!C110 -> 0.005407302069 | D110: -62.22222222 | E110: 5806.756337 | F110: 0.01722131844 | G110: 1.146768734 | H110: 6659.006613 | I110: 10900
A111: 110 | B111: 1 | C111: ='Berechnung niedrig Rückgang'!C111 -> 0.02348755271 | D111: -62.22222222 | E111: 5879.459163 | F111: 0.01700836714 | G111: 1.163777101 | H111: 6842.37994 | I111: 11000
A112: 111 | B112: 1 | C112: ='Berechnung niedrig Rückgang'!C112 -> -0.06353472382 | D112: -62.22222222 | E112: 5447.640398 | F112: 0.01835657141 | G112: 1.182133672 | H112: 6439.83915 | I112: 11100
A113: 112 | B113: 1 | C113: ='Berechnung niedrig Rückgang'!C113 -> 0.03716858993 | D113: -62.22222222 | E113: 5585.586576 | F113: 0.01790322263 | G113: 1.200036895 | H113: 6702.909971 | I113: 11200
A114: 113 | B114: 1 | C114: ='Berechnung niedrig Rückgang'!C114 -> 0.05473284245 | D114: -62.22222222 | E114: 5825.673784 | F114: 0.01716539643 | G114: 1.217202291 | H114: 7091.02348 | I114: 11300
A115: 114 | B115: 1 | C115: ='Berechnung niedrig Rückgang'!C115 -> 0.02419516632 | D115: -62.22222222 | E115: 5902.899231 | F115: 0.0169408279 | G115: 1.234143119 | H115: 7285.022471 | I115: 11400
A116: 115 | B116: 1 | C116: ='Berechnung niedrig Rückgang'!C116 -> 0.03719726863 | D116: -62.22222222 | E116: 6057.934241 | F116: 0.01650727724 | G116: 1.250650397 | H116: 7576.357861 | I116: 11500
A117: 116 | B117: 1 | C117: ='Berechnung niedrig Rückgang'!C117 -> -0.04190471053 | D117: -62.22222222 | E117: 5744.463442 | F117: 0.01740806622 | G117: 1.268058463 | H117: 7284.315482 | I117: 11600
A118: 117 | B118: 1 | C118: ='Berechnung niedrig Rückgang'!C118 -> -0.02499748574 | D118: -62.22222222 | E118: 5540.199476 | F118: 0.0180498916 | G118: 1.286108354 | H118: 7125.296831 | I118: 11700
A119: 118 | B119: 1 | C119: ='Berechnung niedrig Rückgang'!C119 -> -0.01849069309 | D119: -62.22222222 | E119: 5376.685657 | F119: 0.01859881837 | G119: 1.304707173 | H119: 7015.000343 | I119: 11800
A120: 119 | B120: 1 | C120: ='Berechnung niedrig Rückgang'!C120 -> 0.02709297349 | D120: -62.22222222 | E120: 5458.448052 | F120: 0.01832022565 | G120: 1.323027398 | H120: 7221.676326 | I120: 11900
A121: 120 | B121: 1 | C121: ='Berechnung niedrig Rückgang'!C121 -> 0.01002818406 | D121: -62.22222222 | E121: 5450.340176 | F121: 0.01834747865 | G121: 1.341374877 | H121: 7310.949384 | I121: 12000
A122: 121 | B122: 1 | C122: ='Berechnung niedrig Rückgang'!C122 -> -0.06976758611 | D122: -62.22222222 | E122: 5012.20197 | F122: 0.01995131094 | G122: 1.361326188 | H122: 6823.241802 | I122: 12100
A123: 122 | B123: 1 | C123: ='Berechnung niedrig Rückgang'!C123 -> 0.0005259426049 | D123: -62.22222222 | E123: 4952.583153 | F123: 0.02019148329 | G123: 1.381517671 | H123: 6842.081145 | I123: 12200
A124: 123 | B124: 1 | C124: ='Berechnung niedrig Rückgang'!C124 -> 0.01451968627 | D124: -62.22222222 | E124: 4961.367438 | F124: 0.02015573353 | G124: 1.401673405 | H124: 6954.216789 | I124: 12300
A125: 124 | B125: 1 | C125: ='Berechnung niedrig Rückgang'!C125 -> 0.06313413911 | D125: -62.22222222 | E125: 5208.448531 | F125: 0.01919957535 | G125: 1.42087298 | H125: 7400.543786 | I125: 12400
A126: 125 | B126: 1 | C126: ='Berechnung niedrig Rückgang'!C126 -> -0.02224358598 | D126: -62.22222222 | E126: 5031.755781 | F126: 0.01987377853 | G126: 1.440746759 | H126: 7249.485833 | I126: 12500
A127: 126 | B127: 1 | C127: ='Berechnung niedrig Rückgang'!C127 -> 0.04134071362 | D127: -62.22222222 | E127: 5174.977623 | F127: 0.01932375506 | G127: 1.460070514 | H127: 7555.832237 | I127: 12600
A128: 127 | B128: 1 | C128: ='Berechnung niedrig Rückgang'!C128 -> 0.002494991921 | D128: -62.22222222 | E128: 5125.511684 | F128: 0.0195102472 | G128: 1.479580761 | H128: 7583.608478 | I128: 12700
A129: 128 | B129: 1 | C129: ='Berechnung niedrig Rückgang'!C129 -> 0.05004317099 | D129: -62.22222222 | E129: 5316.672522 | F129: 0.01880875672 | G129: 1.498389518 | H129: 7966.446376 | I129: 12800
A130: 129 | B130: 1 | C130: ='Berechnung niedrig Rückgang'!C130 -> -0.0388337427 | D130: -62.22222222 | E130: 5050.400329 | F130: 0.01980041056 | G130: 1.518189928 | H130: 7667.466913 | I130: 12900
A131: 130 | B131: 1 | C131: ='Berechnung niedrig Rückgang'!C131 -> 0.05508974706 | D131: -62.22222222 | E131: 5262.975577 | F131: 0.01900065819 | G131: 1.537190586 | H131: 8090.196513 | I131: 13000
A132: 131 | B132: =IF(A132<$M$11*12/2+1,1,0) -> 1 | C132: ='Berechnung niedrig Rückgang'!C132 -> 0.008380041977 | D132: =IF(B132=1,-$M$1,$M$4) -> -62.22222222 | E132: =MAX(IF(A132=$M$5,$M$8,IF(A132=$M$5/2,$M$2,(E131+D132)*(1+C132))),$M$2) -> 5244.335886 | F132: =$M$10/E132 -> 0.01906819132 | G132: =G131+F132 -> 1.556258778 | H132: =G132*E132 -> 8161.543756 | I132: =$M$10*A132 -> 13100
A133: 132 | B133: 1 | C133: ='Berechnung niedrig Rückgang'!C133 -> -0.05426286528 | D133: -62.22222222 | E133: 4900.917328 | F133: 0.02040434337 | G133: 1.576663121 | H133: 7727.095611 | I133: 13200
A134: 133 | B134: 1 | C134: ='Berechnung niedrig Rückgang'!C134 -> -0.003413072874 | D134: -62.22222222 | E134: 4822.180287 | F134: 0.02073750753 | G134: 1.597400629 | H134: 7702.953822 | I134: 13300
A135: 134 | B135: 1 | C135: ='Berechnung niedrig Rückgang'!C135 -> 0.03596926772 | D135: -62.22222222 | E135: 4931.170271 | F135: 0.02027916184 | G135: 1.617679791 | H135: 7977.054491 | I135: 13400
A136: 135 | B136: 1 | C136: ='Berechnung niedrig Rückgang'!C136 -> 0.06728227888 | D136: -62.22222222 | E136: 5196.541969 | F136: 0.01924356632 | G136: 1.636923357 | H136: 8506.340924 | I136: 13500
A137: 136 | B137: 1 | C137: ='Berechnung niedrig Rückgang'!C137 -> -0.04273678339 | D137: -62.22222222 | E137: 4914.895436 | F137: 0.02034631282 | G137: 1.65726967 | H137: 8145.307135 | I137: 13600
A138: 137 | B138: 1 | C138: ='Berechnung niedrig Rückgang'!C138 -> 0.01588329137 | D138: -62.22222222 | E138: 4929.749636 | F138: 0.02028500581 | G138: 1.677554675 | H138: 8269.924551 | I138: 13700
A139: 138 | B139: 1 | C139: ='Berechnung niedrig Rückgang'!C139 -> 0.03150135082 | D139: -62.22222222 | E139: 5020.861103 | F139: 0.01991690229 | G139: 1.697471578 | H139: 8522.769018 | I139: 13800
A140: 139 | B140: 1 | C140: ='Berechnung niedrig Rückgang'!C140 -> 0.02384454233 | D140: -62.22222222 | E140: 5076.875355 | F140: 0.01969715485 | G140: 1.717168733 | H140: 8717.851619 | I140: 13900
A141: 140 | B141: 1 | C141: ='Berechnung niedrig Rückgang'!C141 -> -0.01242311296 | D141: -62.22222222 | E141: 4952.355531 | F141: 0.02019241135 | G141: 1.737361144 | H141: 8604.03007 | I141: 14000
A142: 141 | B142: 1 | C142: ='Berechnung niedrig Rückgang'!C142 -> 0.001119877742 | D142: -62.22222222 | E142: 4895.60966 | F142: 0.02042646513 | G142: 1.757787609 | H142: 8605.441999 | I142: 14100
A143: 142 | B143: 1 | C143: ='Berechnung niedrig Rückgang'!C143 -> 0.01208770731 | D143: -62.22222222 | E143: 4891.81201 | F143: 0.02044232276 | G143: 1.778229932 | H143: 8698.766538 | I143: 14200
A144: 143 | B144: 1 | C144: ='Berechnung niedrig Rückgang'!C144 -> 0.01351064391 | D144: -62.22222222 | E144: 4894.840656 | F144: 0.02042967423 | G144: 1.798659606 | H144: 8804.152166 | I144: 14300
A145: 144 | B145: 1 | C145: ='Berechnung niedrig Rückgang'!C145 -> -0.01420284136 | D145: -62.22222222 | E145: 4800 | F145: 0.02083333333 | G145: 1.819492939 | H145: 8733.566109 | I145: 14400
A146: 145 | B146: 1 | C146: ='Berechnung niedrig Rückgang'!C146 -> 0.03377216273 | D146: -62.22222222 | E146: 4897.78278 | F146: 0.02041740202 | G146: 1.839910341 | H146: 9011.481187 | I146: 14500
A147: 146 | B147: 1 | C147: ='Berechnung niedrig Rückgang'!C147 -> -0.008754352326 | D147: -62.22222222 | E147: 4800 | F147: 0.02083333333 | G147: 1.860743675 | H147: 8931.569639 | I147: 14600
A148: 147 | B148: 1 | C148: ='Berechnung niedrig Rückgang'!C148 -> 0.001960136022 | D148: -62.22222222 | E148: 4800 | F148: 0.02083333333 | G148: 1.881577008 | H148: 9031.569639 | I148: 14700
A149: 148 | B149: 1 | C149: ='Berechnung niedrig Rückgang'!C149 -> -0.01787049622 | D149: -62.22222222 | E149: 4800 | F149: 0.02083333333 | G149: 1.902410341 | H149: 9131.569639 | I149: 14800
A150: 149 | B150: 1 | C150: ='Berechnung niedrig Rückgang'!C150 -> -0.00427751808 | D150: -62.22222222 | E150: 4800 | F150: 0.02083333333 | G150: 1.923243675 | H150: 9231.569639 | I150: 14900
A151: 150 | B151: 1 | C151: ='Berechnung niedrig Rückgang'!C151 -> -0.04130001249 | D151: -62.22222222 | E151: 4800 | F151: 0.02083333333 | G151: 1.944077008 | H151: 9331.569639 | I151: 15000
A152: 151 | B152: 1 | C152: ='Berechnung niedrig Rückgang'!C152 -> 0.04031701698 | D152: -62.22222222 | E152: 4928.790845 | F152: 0.02028895182 | G152: 1.96436596 | H152: 9681.948959 | I152: 15100
A153: 152 | B153: 1 | C153: ='Berechnung niedrig Rückgang'!C153 -> 0.02128131362 | D153: -62.22222222 | E153: 4970.135596 | F153: 0.02012017541 | G153: 1.984486135 | H153: 9863.165181 | I153: 15200
A154: 153 | B154: 1 | C154: ='Berechnung niedrig Rückgang'!C154 -> -0.0148419561 | D154: -62.22222222 | E154: 4835.070339 | F154: 0.02068222239 | G154: 2.005168358 | H154: 9695.130051 | I154: 15300
A155: 154 | B155: 1 | C155: ='Berechnung niedrig Rückgang'!C155 -> -0.02755555048 | D155: -62.22222222 | E155: 4800 | F155: 0.02083333333 | G155: 2.026001691 | H155: 9724.808117 | I155: 15400
A156: 155 | B156: 1 | C156: ='Berechnung niedrig Rückgang'!C156 -> -0.0613016851 | D156: -62.22222222 | E156: 4800 | F156: 0.02083333333 | G156: 2.046835024 | H156: 9824.808117 | I156: 15500
A157: 156 | B157: 1 | C157: ='Berechnung niedrig Rückgang'!C157 -> 0.006942305703 | D157: -62.22222222 | E157: 4800 | F157: 0.02083333333 | G157: 2.067668358 | H157: 9924.808117 | I157: 15600
A158: 157 | B158: 1 | C158: ='Berechnung niedrig Rückgang'!C158 -> -0.03903213507 | D158: -62.22222222 | E158: 4800 | F158: 0.02083333333 | G158: 2.088501691 | H158: 10024.80812 | I158: 15700
A159: 158 | B159: 1 | C159: ='Berechnung niedrig Rückgang'!C159 -> -0.0003065438176 | D159: -62.22222222 | E159: 4800 | F159: 0.02083333333 | G159: 2.109335024 | H159: 10124.80812 | I159: 15800
A160: 159 | B160: 1 | C160: ='Berechnung niedrig Rückgang'!C160 -> -0.03743361881 | D160: -62.22222222 | E160: 4800 | F160: 0.02083333333 | G160: 2.130168358 | H160: 10224.80812 | I160: 15900
A161: 160 | B161: 1 | C161: ='Berechnung niedrig Rückgang'!C161 -> 0.04711589656 | D161: -62.22222222 | E161: 4961.002425 | F161: 0.02015721651 | G161: 2.150325574 | H161: 10667.77039 | I161: 16000
A162: 161 | B162: 1 | C162: ='Berechnung niedrig Rückgang'!C162 -> 0.03132797137 | D162: -62.22222222 | E162: 5052.249049 | F162: 0.01979316519 | G162: 2.170118739 | H162: 10963.98034 | I162: 16100
A163: 162 | B163: 1 | C163: ='Berechnung niedrig Rückgang'!C163 -> 0.003361840749 | D163: -62.22222222 | E163: 5006.802503 | F163: 0.01997282696 | G163: 2.190091566 | H163: 10965.35594 | I163: 16200
A164: 163 | B164: 1 | C164: ='Berechnung niedrig Rückgang'!C164 -> 0.05646595707 | D164: -62.22222222 | E164: 5223.780738 | F164: 0.01914322308 | G164: 2.209234789 | H164: 11540.55814 | I164: 16300
A165: 164 | B165: 1 | C165: ='Berechnung niedrig Rückgang'!C165 -> -0.05921242191 | D165: -62.22222222 | E165: 4855.930135 | F165: 0.02059337701 | G165: 2.229828166 | H165: 10827.88979 | I165: 16400
A166: 165 | B166: 1 | C166: ='Berechnung niedrig Rückgang'!C166 -> -0.01442157783 | D166: -62.22222222 | E166: 4800 | F166: 0.02083333333 | G166: 2.2506615 | H166: 10803.1752 | I166: 16500
A167: 166 | B167: 1 | C167: ='Berechnung niedrig Rückgang'!C167 -> -0.06011777849 | D167: -62.22222222 | E167: 4800 | F167: 0.02083333333 | G167: 2.271494833 | H167: 10903.1752 | I167: 16600
A168: 167 | B168: 1 | C168: ='Berechnung niedrig Rückgang'!C168 -> -0.06473298082 | D168: -62.22222222 | E168: 4800 | F168: 0.02083333333 | G168: 2.292328166 | H168: 11003.1752 | I168: 16700
A169: 168 | B169: 1 | C169: ='Berechnung niedrig Rückgang'!C169 -> 0.01271274324 | D169: -62.22222222 | E169: 4800 | F169: 0.02083333333 | G169: 2.3131615 | H169: 11103.1752 | I169: 16800
A170: 169 | B170: 1 | C170: ='Berechnung niedrig Rückgang'!C170 -> -0.06732563183 | D170: -62.22222222 | E170: 4800 | F170: 0.02083333333 | G170: 2.333994833 | H170: 11203.1752 | I170: 16900
A171: 170 | B171: 1 | C171: ='Berechnung niedrig Rückgang'!C171 -> 0.04564881243 | D171: -62.22222222 | E171: 4954.051707 | F171: 0.02018549783 | G171: 2.354180331 | H171: 11662.73109 | I171: 17000
A172: 171 | B172: 1 | C172: ='Berechnung niedrig Rückgang'!C172 -> -0.06220691789 | D172: -62.22222222 | E172: 4800 | F172: 0.02083333333 | G172: 2.375013664 | H172: 11400.06559 | I172: 17100
A173: 172 | B173: 1 | C173: ='Berechnung niedrig Rückgang'!C173 -> -0.01517538713 | D173: -62.22222222 | E173: 4800 | F173: 0.02083333333 | G173: 2.395846998 | H173: 11500.06559 | I173: 17200
A174: 173 | B174: 1 | C174: ='Berechnung niedrig Rückgang'!C174 -> -0.06427763632 | D174: -62.22222222 | E174: 4800 | F174: 0.02083333333 | G174: 2.416680331 | H174: 11600.06559 | I174: 17300
A175: 174 | B175: 1 | C175: ='Berechnung niedrig Rückgang'!C175 -> -0.008689182503 | D175: -62.22222222 | E175: 4800 | F175: 0.02083333333 | G175: 2.437513664 | H175: 11700.06559 | I175: 17400
A176: 175 | B176: 1 | C176: ='Berechnung niedrig Rückgang'!C176 -> 0.03844262875 | D176: -62.22222222 | E176: 4919.91041 | F176: 0.02032557337 | G176: 2.457839238 | H176: 12092.34885 | I176: 17500
A177: 176 | B177: 1 | C177: ='Berechnung niedrig Rückgang'!C177 -> 0.04250785088 | D177: -62.22222222 | E177: 5064.178073 | F177: 0.01974654101 | G177: 2.477585779 | H177: 12546.93557 | I177: 17600
A178: 177 | B178: 1 | C178: ='Berechnung niedrig Rückgang'!C178 -> -0.06588178478 | D178: -62.22222222 | E178: 4800 | F178: 0.02083333333 | G178: 2.498419112 | H178: 11992.41174 | I178: 17700
A179: 178 | B179: 1 | C179: ='Berechnung niedrig Rückgang'!C179 -> -0.01995329387 | D179: -62.22222222 | E179: 4800 | F179: 0.02083333333 | G179: 2.519252445 | H179: 12092.41174 | I179: 17800
A180: 179 | B180: 1 | C180: ='Berechnung niedrig Rückgang'!C180 -> 0.02691796712 | D180: -62.22222222 | E180: 4865.309124 | F180: 0.02055367859 | G180: 2.539806124 | H180: 12356.94191 | I180: 17900
A181: 180 | B181: 1 | C181: ='Berechnung niedrig Rückgang'!C181 -> 0.04894582094 | D181: -62.22222222 | E181: 4800 | F181: 0.02083333333 | G181: 2.560639457 | H181: 12291.06939 | I181: 18000
A182: 181 | B182: 0 | C182: ='Berechnung niedrig Rückgang'!C182 -> 0.05294199872 | D182: 62.22222222 | E182: 5119.637985 | F182: 0.01953263108 | G182: 2.580172088 | H182: 13209.54703 | I182: 18100
A183: 182 | B183: 0 | C183: ='Berechnung niedrig Rückgang'!C183 -> 0.03111260599 | D183: 62.22222222 | E183: 5343.081382 | F183: 0.01871579204 | G183: 2.59888788 | H183: 13886.06945 | I183: 18200
A184: 183 | B184: 0 | C184: ='Berechnung niedrig Rückgang'!C184 -> 0.05667021199 | D184: 62.22222222 | E184: 5711.623305 | F184: 0.01750815743 | G184: 2.616396038 | H184: 14943.86859 | I184: 18300
A185: 184 | B185: 0 | C185: ='Berechnung niedrig Rückgang'!C185 -> -0.06745385432 | D185: 62.22222222 | E185: 5384.377392 | F185: 0.01857224944 | G185: 2.634968287 | H185: 14187.66368 | I185: 18400
A186: 185 | B186: 0 | C186: ='Berechnung niedrig Rückgang'!C186 -> 0.03016247774 | D186: 62.22222222 | E186: 5610.882554 | F186: 0.01782250814 | G186: 2.652790795 | H186: 14884.49759 | I186: 18500
A187: 186 | B187: 0 | C187: ='Berechnung niedrig Rückgang'!C187 -> 0.04448452324 | D187: 62.22222222 | E187: 5925.470138 | F187: 0.01687629803 | G187: 2.669667093 | H187: 15819.03264 | I187: 18600
A188: 187 | B188: 0 | C188: ='Berechnung niedrig Rückgang'!C188 -> 0.02540045286 | D188: 62.22222222 | E188: 6139.782458 | F188: 0.01628722201 | G188: 2.685954315 | H188: 16491.17519 | I188: 18700
A189: 188 | B189: 0 | C189: ='Berechnung niedrig Rückgang'!C189 -> -0.03373450885 | D189: 62.22222222 | E189: 5992.783098 | F189: 0.01668673776 | G189: 2.702641053 | H189: 16196.34162 | I189: 18800
A190: 189 | B190: 0 | C190: ='Berechnung niedrig Rückgang'!C190 -> 0.03776809018 | D190: 62.22222222 | E190: 6283.691307 | F190: 0.0159142127 | G190: 2.718555266 | H190: 17082.56209 | I190: 18900
A191: 190 | B191: 0 | C191: ='Berechnung niedrig Rückgang'!C191 -> -0.06730286358 | D191: 62.22222222 | E191: 5918.815377 | F191: 0.01689527272 | G191: 2.735450539 | H191: 16190.62671 | I191: 19000
A192: 191 | B192: 0 | C192: ='Berechnung niedrig Rückgang'!C192 -> 0.01227244783 | D192: 62.22222222 | E192: 6054.439571 | F192: 0.01651680537 | G192: 2.751967344 | H192: 16661.61999 | I192: 19100
A193: 192 | B193: 0 | C193: ='Berechnung niedrig Rückgang'!C193 -> -0.01151392749 | D193: 62.22222222 | E193: 6046.234993 | F193: 0.01653921823 | G193: 2.768506562 | H193: 16739.04125 | I193: 19200
A194: 193 | B194: 0 | C194: ='Berechnung niedrig Rückgang'!C194 -> 0.06613417059 | D194: 62.22222222 | E194: 6512.434967 | F194: 0.01535523971 | G194: 2.783861802 | H194: 18129.71894 | I194: 19300
A195: 194 | B195: 0 | C195: ='Berechnung niedrig Rückgang'!C195 -> 0.03262974725 | D195: 62.22222222 | E195: 6789.186591 | F195: 0.014729305 | G195: 2.798591107 | H195: 19000.15722 | I195: 19400
A196: 195 | B196: =IF(A196<$M$11*12/2+1,1,0) -> 0 | C196: ='Berechnung niedrig Rückgang'!C196 -> 0.005566436363 | D196: =IF(B196=1,-$M$1,$M$4) -> 62.22222222 | E196: =MAX(IF(A196=$M$5,$M$8,IF(A196=$M$5/2,$M$2,(E195+D196)*(1+C196))),$M$2) -> 6889.546744 | F196: =$M$10/E196 -> 0.01451474294 | G196: =G195+F196 -> 2.81310585 | H196: =G196*E196 -> 19381.02425 | I196: =$M$10*A196 -> 19500
A197: 196 | B197: 0 | C197: ='Berechnung niedrig Rückgang'!C197 -> -0.008535048896 | D197: 62.22222222 | E197: 6892.435279 | F197: 0.01450866 | G197: 2.82761451 | H197: 19489.15 | I197: 19600
A198: 197 | B198: 0 | C198: ='Berechnung niedrig Rückgang'!C198 -> 0.04350095325 | D198: 62.22222222 | E198: 7257.191732 | F198: 0.01377943476 | G198: 2.841393945 | H198: 20620.54064 | I198: 19700
A199: 198 | B199: 0 | C199: ='Berechnung niedrig Rückgang'!C199 -> -0.01765468214 | D199: 62.22222222 | E199: 7190.192027 | F199: 0.0139078344 | G199: 2.855301779 | H199: 20530.16809 | I199: 19800
A200: 199 | B200: 0 | C200: ='Berechnung niedrig Rückgang'!C200 -> -0.0106078863 | D200: 62.22222222 | E200: 7175.481464 | F200: 0.01393634706 | G200: 2.869238126 | H200: 20588.16499 | I200: 19900
... 401 more rows

Sheet Berechnung niedrig (hidden)
A1: Monate | B1: Verlust? | C1: Volatilität | D1: Verlust / Gewinn | E1: Kurs | F1: neue Anteile | G1: Gesamtanteile | H1: Anteilguthaben | I1: Beitrag | L1: Verlust mtl. | M1: =(Uebersicht!E16-'Berechnung niedrig'!M2)/(M5/2) -> 62.22222222
A2: 1 | B2: =IF(A2<M11*12/2+1,1,0) -> 1 | C2: ='Berechnung niedrig Rückgang'!C2 -> 0.02731637433 | D2: =IF(B2=1,-$M$1,$M$4) -> -62.22222222 | E2: =MAX(M7-D2,M2) -> 16062.22222 | F2: =$M$10/E2 -> 0.0062257886 | G2: =F2 -> 0.0062257886 | H2: =G2*E2 -> 100 | I2: =$M$10*A2 -> 100 | L2: Minimalwert | M2: =M7*(1-M9) -> 4800
A3: 2 | B3: =IF(A3<$M$11*12/2+1,1,0) -> 1 | C3: ='Berechnung niedrig Rückgang'!C3 -> -0.04845229659 | D3: =IF(B3=1,-$M$1,$M$4) -> -62.22222222 | E3: =MAX(IF(A3=$M$5,$M$8,IF(A3=$M$5/2,$M$2,(E2+D3)*(1+C3))),$M$2) -> 15224.76325 | F3: =$M$10/E3 -> 0.006568246634 | G3: =G2+F3 -> 0.01279403523 | H3: =G3*E3 -> 194.7861575 | I3: =$M$10*A3 -> 200 | L3: max. Gewinn | M3: =M8-M2 -> 8000
A4: 3 | B4: =IF(A4<$M$11*12/2+1,1,0) -> 1 | C4: ='Berechnung niedrig Rückgang'!C4 -> 0.03928487563 | D4: =IF(B4=1,-$M$1,$M$4) -> -62.22222222 | E4: =MAX(IF(A4=$M$5,$M$8,IF(A4=$M$5/2,$M$2,(E3+D4)*(1+C4))),$M$2) -> 15758.19957 | F4: =$M$10/E4 -> 0.006345902624 | G4: =G3+F4 -> 0.01913993786 | H4: 301.6109605 | I4: =$M$10*A4 -> 300 | L4: Gewinn mtl. | M4: =M3/(M5/2) -> 44.44444444
A5: 4 | B5: 1 | C5: ='Berechnung niedrig Rückgang'!C5 -> -0.04357172387 | D5: -62.22222222 | E5: 15012.07656 | F5: 0.006661303625 | G5: 0.02580124148 | H5: 387.3302124 | I5: 400 | L5: Raten | M5: =Uebersicht!E21*12 -> 360
A6: 5 | B6: 1 | C6: ='Berechnung niedrig Rückgang'!C6 -> 0.05572426364 | D6: -62.22222222 | E6: 15782.92396 | F6: 0.006335961591 | G6: 0.03213720307 | H6: 507.2190324 | I6: 500
A7: 6 | B7: 1 | C7: ='Berechnung niedrig Rückgang'!C7 -> 0.02019819681 | D7: -62.22222222 | E7: 16038.23157 | F7: 0.006235101395 | G7: 0.03837230447 | H7: 615.4239048 | I7: 600 | L7: Dax heute | M7: =Uebersicht!E16 -> 16000
A8: 7 | B8: 1 | C8: ='Berechnung niedrig Rückgang'!C8 -> -0.01901442805 | D8: -62.22222222 | E8: 15672.23466 | F8: 0.006380710993 | G8: 0.04475301546 | H8: 701.3797602 | I8: 700 | L8: Dax Zukunft | M8: =Uebersicht!E23*0.8 -> 12800
A9: 8 | B9: 1 | C9: ='Berechnung niedrig Rückgang'!C9 -> 0.03921444078 | D9: -62.22222222 | E9: 16222.15035 | F9: 0.006164410873 | G9: 0.05091742633 | H9: 825.9901454 | I9: 800 | L9: Rückgang | M9: =Uebersicht!E22 -> 0.7
A10: 9 | B10: 1 | C10: ='Berechnung niedrig Rückgang'!C10 -> -0.0575286446 | D10: -62.22222222 | E10: 15230.26937 | F10: 0.006565872054 | G10: 0.05748329839 | H10: 875.4861185 | I10: 900 | L10: Beitrag | M10: =Hilfe!G3 -> 100
A11: 10 | B11: 1 | C11: ='Berechnung niedrig Rückgang'!C11 -> 0.01309078215 | D11: -62.22222222 | E11: 15366.60874 | F11: 0.006507616721 | G11: 0.06399091511 | H11: 983.3233556 | I11: 1000 | L11: Laufzeit | M11: =Uebersicht!E21 -> 30
A12: 11 | B12: 1 | C12: ='Berechnung niedrig Rückgang'!C12 -> -0.01227094008 | D12: -62.22222222 | E12: 15116.58731 | F12: 0.006615249721 | G12: 0.07060616483 | H12: 1067.324255 | I12: 1100
A13: 12 | B13: 1 | C13: ='Berechnung niedrig Rückgang'!C13 -> -0.01079279816 | D13: -62.22222222 | E13: 14891.88637 | F13: 0.006715066013 | G13: 0.07732123084 | H13: 1151.458983 | I13: 1200
A14: 13 | B14: 1 | C14: ='Berechnung niedrig Rückgang'!C14 -> -0.02940274016 | D14: -62.22222222 | E14: 14393.63138 | F14: 0.006947517089 | G14: 0.08426874793 | H14: 1212.933295 | I14: 1300 | L14: ="Ablauf in "&FIXED(Uebersicht!E21,0)&" Jahren" -> Ablauf in 30 Jahren | O14: =VLOOKUP(M5,A:I,8) -> 45333.03116
A15: 14 | B15: 1 | C15: ='Berechnung niedrig Rückgang'!C15 -> -0.006626124498 | D15: -62.22222222 | E15: 14236.44746 | F15: 0.007024224287 | G15: 0.09129297222 | H15: 1299.687602 | I15: 1400 | L15: ="Beitragsumme über "&FIXED(Uebersicht!E21,0)&" Jahren" -> Beitragsumme über 30 Jahren | O15: =VLOOKUP(Uebersicht!E21*12,Berechnung!A1:I601,9) -> 36000
A16: 15 | B16: 1 | C16: ='Berechnung niedrig Rückgang'!C16 -> 0.03066241603 | D16: -62.22222222 | E16: 14608.84123 | F16: 0.006845169883 | G16: 0.0981381421 | H16: 1433.684536 | I16: 1500 | L16: Rendite p.a. | O16: =RATE(M5,-M10,0,O14,0,1%)*12 -> 0.014867283
A17: 16 | B17: 1 | C17: ='Berechnung niedrig Rückgang'!C17 -> 0.01793867194 | D17: -62.22222222 | E17: 14807.56603 | F17: 0.006753304344 | G17: 0.1048914464 | H17: 1553.187019 | I17: 1600
A18: 17 | B18: 1 | C18: ='Berechnung niedrig Rückgang'!C18 -> -0.01104604536 | D18: -62.22222222 | E18: 14582.46607 | F18: 0.006857550671 | G18: 0.1117489971 | H18: 1629.575959 | I18: 1700
A19: 18 | B19: 1 | C19: ='Berechnung niedrig Rückgang'!C19 -> 0.04058933443 | D19: -62.22222222 | E19: 15109.61088 | F19: 0.006618304122 | G19: 0.1183673012 | H19: 1788.483863 | I19: 1800
A20: 19 | B20: 1 | C20: ='Berechnung niedrig Rückgang'!C20 -> 0.04501659656 | D20: -62.22222222 | E20: 15724.77089 | F20: 0.006359393133 | G20: 0.1247266944 | H20: 1961.298692 | I20: 1900
A21: 20 | B21: 1 | C21: ='Berechnung niedrig Rückgang'!C21 -> 0.06055830801 | D21: -62.22222222 | E21: 16611.04611 | F21: 0.006020090447 | G21: 0.1307467848 | H21: 2171.840871 | I21: 2000
A22: 21 | B22: 1 | C22: ='Berechnung niedrig Rückgang'!C22 -> -0.0007834759181 | D22: -62.22222222 | E22: 16535.85828 | F22: 0.006047463536 | G22: 0.1367942484 | H22: 2262.010305 | I22: 2100
A23: 22 | B23: 1 | C23: ='Berechnung niedrig Rückgang'!C23 -> 0.06562166937 | D23: -62.22222222 | E23: 17554.66356 | F23: 0.00569649197 | G23: 0.1424907403 | H23: 2501.377007 | I23: 2200
A24: 23 | B24: 1 | C24: ='Berechnung niedrig Rückgang'!C24 -> -0.05958985509 | D24: -62.22222222 | E24: 16450.06929 | F24: 0.006079001749 | G24: 0.1485697421 | H24: 2443.982552 | I24: 2300
A25: 24 | B25: 1 | C25: ='Berechnung niedrig Rückgang'!C25 -> 0.05383251329 | D25: -62.22222222 | E25: 17270.04607 | F25: 0.005790372511 | G25: 0.1543601146 | H25: 2665.80629 | I25: 2400
A26: 25 | B26: 1 | C26: ='Berechnung niedrig Rückgang'!C26 -> 0.001948691659 | D26: -62.22222222 | E26: 17241.35659 | F26: 0.005800007644 | G26: 0.1601601222 | H26: 2761.377778 | I26: 2500
A27: 26 | B27: 1 | C27: ='Berechnung niedrig Rückgang'!C27 -> -0.05162698997 | D27: -62.22222222 | E27: 16292.22737 | F27: 0.006137896173 | G27: 0.1662980184 | H27: 2709.365126 | I27: 2600
A28: 27 | B28: 1 | C28: ='Berechnung niedrig Rückgang'!C28 -> -0.06062050892 | D28: -62.22222222 | E28: 15246.13397 | F28: 0.006559039831 | G28: 0.1728570582 | H28: 2635.401868 | I28: 2700
A29: 28 | B29: 1 | C29: ='Berechnung niedrig Rückgang'!C29 -> 0.01051563244 | D29: -62.22222222 | E29: 15343.58019 | F29: 0.006517383739 | G29: 0.179374442 | H29: 2752.246134 | I29: 2800
A30: 29 | B30: 1 | C30: ='Berechnung niedrig Rückgang'!C30 -> -0.02309266304 | D30: -62.22222222 | E30: 14928.47071 | F30: 0.006698609785 | G30: 0.1860730518 | H30: 2777.786104 | I30: 2900
A31: 30 | B31: 1 | C31: ='Berechnung niedrig Rückgang'!C31 -> -0.02341667007 | D31: -62.22222222 | E31: 14518.13046 | F31: 0.006887939209 | G31: 0.192960991 | H31: 2801.43284 | I31: 3000
A32: 31 | B32: 1 | C32: ='Berechnung niedrig Rückgang'!C32 -> 0.06750782689 | D32: -62.22222222 | E32: 15431.79518 | F32: 0.006480127478 | G32: 0.1994411184 | H32: 3077.734491 | I32: 3100
A33: 32 | B33: 1 | C33: ='Berechnung niedrig Rückgang'!C33 -> 0.06125894487 | D33: -62.22222222 | E33: 16311.09678 | F33: 0.006130795576 | G33: 0.205571914 | H33: 3353.103386 | I33: 3200
A34: 33 | B34: 1 | C34: ='Berechnung niedrig Rückgang'!C34 -> -0.0377187628 | D34: -62.22222222 | E34: 15635.98712 | F34: 0.006395502839 | G34: 0.2119674169 | H34: 3314.319799 | I34: 3300
A35: 34 | B35: 1 | C35: ='Berechnung niedrig Rückgang'!C35 -> -0.03453173236 | D35: -62.22222222 | E35: 15035.97581 | F35: 0.006650715673 | G35: 0.2186181325 | H35: 3287.136953 | I35: 3400
A36: 35 | B36: 1 | C36: ='Berechnung niedrig Rückgang'!C36 -> 0.03050309293 | D36: -62.22222222 | E36: 15430.49939 | F36: 0.006480671655 | G36: 0.2250988042 | H36: 3473.38696 | I36: 3500
A37: 36 | B37: 1 | C37: ='Berechnung niedrig Rückgang'!C37 -> 0.01288981911 | D37: -62.22222222 | E37: 15566.37148 | F37: 0.006424104689 | G37: 0.2315229089 | H37: 3603.971605 | I37: 3600
A38: 37 | B38: 1 | C38: ='Berechnung niedrig Rückgang'!C38 -> 0.006320444409 | D38: -62.22222222 | E38: 15602.14237 | F38: 0.006409376202 | G38: 0.2379322851 | H38: 3712.253386 | I38: 3700
A39: 38 | B39: 1 | C39: ='Berechnung niedrig Rückgang'!C39 -> 0.004101471901 | D39: -62.22222222 | E39: 15603.65669 | F39: 0.006408754176 | G39: 0.2443410393 | H39: 3812.613693 | I39: 3800
A40: 39 | B40: 1 | C40: ='Berechnung niedrig Rückgang'!C40 -> 0.05772742359 | D40: -62.22222222 | E40: 16438.60144 | F40: 0.006083242565 | G40: 0.2504242818 | H40: 4116.62496 | I40: 3900
A41: 40 | B41: 1 | C41: ='Berechnung niedrig Rückgang'!C41 -> 0.02845331425 | D41: -62.22222222 | E41: 16842.34148 | F41: 0.005937416724 | G41: 0.2563616985 | H41: 4317.73127 | I41: 4000
A42: 41 | B42: 1 | C42: ='Berechnung niedrig Rückgang'!C42 -> 0.01125238758 | D42: -62.22222222 | E42: 16968.93567 | F42: 0.005893121523 | G42: 0.2622548201 | H42: 4450.18517 | I42: 4100
A43: 42 | B43: 1 | C43: ='Berechnung niedrig Rückgang'!C43 -> 0.03837073495 | D43: -62.22222222 | E43: 17555.43647 | F43: 0.005696241173 | G43: 0.2679510612 | H43: 4703.997832 | I43: 4200
A44: 43 | B44: 1 | C44: ='Berechnung niedrig Rückgang'!C44 -> 0.001778985899 | D44: -62.22222222 | E44: 17524.33443 | F44: 0.005706350813 | G44: 0.2736574121 | H44: 4795.664007 | I44: 4300
A45: 44 | B45: 1 | C45: ='Berechnung niedrig Rückgang'!C45 -> -0.02721659202 | D45: -62.22222222 | E45: 16986.85302 | F45: 0.00588690559 | G45: 0.2795443176 | H45: 4748.578236 | I45: 4400
A46: 45 | B46: 1 | C46: ='Berechnung niedrig Rückgang'!C46 -> -0.03076312677 | D46: -62.22222222 | E46: 16403.97623 | F46: 0.00609608296 | G46: 0.2856404006 | H46: 4685.638343 | I46: 4500
A47: 46 | B47: 1 | C47: ='Berechnung niedrig Rückgang'!C47 -> 0.06390723684 | D47: -62.22222222 | E47: 17386.11036 | F47: 0.005751717777 | G47: 0.2913921184 | H47: 5066.175527 | I47: 4600
A48: 47 | B48: 1 | C48: ='Berechnung niedrig Rückgang'!C48 -> -0.04378644709 | D48: -62.22222222 | E48: 16565.33662 | F48: 0.006036701957 | G48: 0.2974288203 | H48: 4927.00853 | I48: 4700
A49: 48 | B49: 1 | C49: ='Berechnung niedrig Rückgang'!C49 -> -0.01754123454 | D49: -62.22222222 | E49: 16213.6294 | F49: 0.006167650532 | G49: 0.3035964709 | H49: 4922.400666 | I49: 4800
A50: 49 | B50: 1 | C50: ='Berechnung niedrig Rückgang'!C50 -> 0.02314844568 | D50: -62.22222222 | E50: 16525.28715 | F50: 0.006051332064 | G50: 0.3096478029 | H50: 5117.018859 | I50: 4900
A51: 50 | B51: 1 | C51: ='Berechnung niedrig Rückgang'!C51 -> 0.04665608609 | D51: -62.22222222 | E51: 17231.1671 | F51: 0.005803437423 | G51: 0.3154512404 | H51: 5435.593035 | I51: 5000
A52: 51 | B52: 1 | C52: ='Berechnung niedrig Rückgang'!C52 -> 0.03003962691 | D52: -62.22222222 | E52: 17684.69358 | F52: 0.005654607447 | G52: 0.3211058478 | H52: 5678.658525 | I52: 5100
A53: 52 | B53: 1 | C53: ='Berechnung niedrig Rückgang'!C53 -> -0.02002910059 | D53: -62.22222222 | E53: 17269.5091 | F53: 0.005790552551 | G53: 0.3268964004 | H53: 5645.340362 | I53: 5200
A54: 53 | B54: 1 | C54: ='Berechnung niedrig Rückgang'!C54 -> -0.05508927968 | D54: -62.22222222 | E54: 16259.34984 | F54: 0.006150307421 | G54: 0.3330467078 | H54: 5415.122936 | I54: 5300
A55: 54 | B55: 1 | C55: ='Berechnung niedrig Rückgang'!C55 -> 0.03973584803 | D55: -62.22222222 | E55: 16840.73422 | F55: 0.005937983385 | G55: 0.3389846912 | H55: 5708.751089 | I55: 5400
A56: 55 | B56: 1 | C56: ='Berechnung niedrig Rückgang'!C56 -> -0.05350755729 | D56: -62.22222222 | E56: 15880.73481 | F56: 0.006296937844 | G56: 0.345281629 | H56: 5483.325984 | I56: 5500
A57: 56 | B57: 1 | C57: ='Berechnung niedrig Rückgang'!C57 -> 0.03886372128 | D57: -62.22222222 | E57: 16433.27885 | F57: 0.006085212873 | G57: 0.3513668419 | H57: 5774.109291 | I57: 5600
A58: 57 | B58: 1 | C58: ='Berechnung niedrig Rückgang'!C58 -> -0.04079970794 | D58: -62.22222222 | E58: 15703.1223 | F58: 0.006368160299 | G58: 0.3577350022 | H58: 5617.55649 | I58: 5700
A59: 58 | B59: 1 | C59: ='Berechnung niedrig Rückgang'!C59 -> 0.05653706196 | D59: -62.22222222 | E59: 16525.19061 | F59: 0.006051367415 | G59: 0.3637863696 | H59: 6011.6391 | I59: 5800
A60: 59 | B60: 1 | C60: ='Berechnung niedrig Rückgang'!C60 -> 0.04893108083 | D60: -62.22222222 | E60: 17268.51923 | F60: 0.005790884481 | G60: 0.3695772541 | H60: 6382.051918 | I60: 5900
A61: 60 | B61: 1 | C61: ='Berechnung niedrig Rückgang'!C61 -> -0.06972426828 | D61: -62.22222222 | E61: 16006.60054 | F61: 0.006247422728 | G61: 0.3758246768 | H61: 6015.675474 | I61: 6000
A62: 61 | B62: 1 | C62: ='Berechnung niedrig Rückgang'!C62 -> -0.04637070854 | D62: -62.22222222 | E62: 15205.0262 | F62: 0.006576772622 | G62: 0.3824014494 | H62: 5814.424056 | I62: 6100
A63: 62 | B63: 1 | C63: ='Berechnung niedrig Rückgang'!C63 -> 0.02895807529 | D63: -62.22222222 | E63: 15581.31043 | F63: 0.006417945425 | G63: 0.3888193948 | H63: 6058.315693 | I63: 6200
A64: 63 | B64: 1 | C64: ='Berechnung niedrig Rückgang'!C64 -> -0.06506248799 | D64: -62.22222222 | E64: 14509.37772 | F64: 0.006892094337 | G64: 0.3957114892 | H64: 5741.527464 | I64: 6300
A65: 64 | B65: 1 | C65: ='Berechnung niedrig Rückgang'!C65 -> 0.06748843507 | D65: -62.22222222 | E65: 15422.17141 | F65: 0.006484171219 | G65: 0.4021956604 | H65: 6202.730416 | I65: 6400
A66: 65 | B66: 1 | C66: ='Berechnung niedrig Rückgang'!C66 -> 0.04367821726 | D66: -62.22222222 | E66: 16030.84439 | F66: 0.006237974594 | G66: 0.408433635 | H66: 6547.536045 | I66: 6500
A67: 66 | B67: 1 | C67: ='Berechnung niedrig Rückgang'!C67 -> -0.00546838446 | D67: -62.22222222 | E67: 15881.2996 | F67: 0.006296713904 | G67: 0.4147303489 | H67: =G67*E67 -> 6586.456924 | I67: 6600
A68: 67 | B68: =IF(A68<$M$11*12/2+1,1,0) -> 1 | C68: ='Berechnung niedrig Rückgang'!C68 -> 0.0006871159912 | D68: =IF(B68=1,-$M$1,$M$4) -> -62.22222222 | E68: =MAX(IF(A68=$M$5,$M$8,IF(A68=$M$5/2,$M$2,(E67+D68)*(1+C68))),$M$2) -> 15829.94692 | F68: =$M$10/E68 -> 0.006317140576 | G68: =G67+F68 -> 0.4210474895 | H68: 6665.159408 | I68: =$M$10*A68 -> 6700
A69: 68 | B69: 1 | C69: ='Berechnung niedrig Rückgang'!C69 -> -0.0657914077 | D69: -62.22222222 | E69: 14730.34389 | F69: 0.006788707768 | G69: 0.4278361972 | H69: 6302.174315 | I69: 6800
A70: 69 | B70: 1 | C70: ='Berechnung niedrig Rückgang'!C70 -> 0.001540499045 | D70: -62.22222222 | E70: 14690.7179 | F70: 0.006807019282 | G70: 0.4346432165 | H70: 6385.22088 | I70: 6900
A71: 70 | B71: 1 | C71: ='Berechnung niedrig Rückgang'!C71 -> -0.003490168972 | D71: -62.22222222 | E71: 14577.43975 | F71: 0.006859915163 | G71: 0.4415031317 | H71: 6435.985303 | I71: 7000
A72: 71 | B72: 1 | C72: ='Berechnung niedrig Rückgang'!C72 -> -0.04678850287 | D72: -62.22222222 | E72: 13836.07223 | F72: 0.007227484673 | G72: 0.4487306164 | H72: 6208.669222 | I72: 7100
A73: 72 | B73: 1 | C73: ='Berechnung niedrig Rückgang'!C73 -> 0.06257986158 | D73: -62.22222222 | E73: 14635.81564 | F73: 0.006832553953 | G73: 0.4555631703 | H73: 6667.538573 | I73: 7200
A74: 73 | B74: 1 | C74: ='Berechnung niedrig Rückgang'!C74 -> 0.06697683895 | D74: -62.22222222 | E74: 15549.68664 | F74: 0.006430997765 | G74: 0.4619941681 | H74: 7183.864541 | I74: 7300
A75: 74 | B75: 1 | C75: ='Berechnung niedrig Rückgang'!C75 -> -0.05304404094 | D75: -62.22222222 | E75: 14665.94672 | F75: 0.006818516522 | G75: 0.4688126846 | H75: 6875.581853 | I75: 7400
A76: 75 | B76: 1 | C76: ='Berechnung niedrig Rückgang'!C76 -> -0.01181889935 | D76: -62.22222222 | E76: 14431.12455 | F76: 0.006929466909 | G76: 0.4757421515 | H76: 6865.49424 | I76: 7500
A77: 76 | B77: 1 | C77: ='Berechnung niedrig Rückgang'!C77 -> -0.003284895265 | D77: -62.22222222 | E77: 14321.70198 | F77: 0.006982410339 | G77: 0.4827245618 | H77: 6913.437315 | I77: 7600
A78: 77 | B78: 1 | C78: ='Berechnung niedrig Rückgang'!C78 -> -0.03937506778 | D78: -62.22222222 | E78: 13698.01178 | F78: 0.007300329538 | G78: 0.4900248914 | H78: 6712.366734 | I78: 7700
A79: 78 | B79: 1 | C79: ='Berechnung niedrig Rückgang'!C79 -> 0.06954432666 | D79: -62.22222222 | E79: 14584.08136 | F79: 0.00685679115 | G79: 0.4968816825 | H79: 7246.562885 | I79: 7800
A80: 79 | B80: 1 | C80: ='Berechnung niedrig Rückgang'!C80 -> 0.03259325638 | D80: -62.22222222 | E80: 14995.17382 | F80: 0.006668812328 | G80: 0.5035504949 | H80: 7550.827196 | I80: 7900
A81: 80 | B81: 1 | C81: ='Berechnung niedrig Rückgang'!C81 -> -0.01713222754 | D81: -62.22222222 | E81: 14677.11687 | F81: 0.006813327228 | G81: 0.5103638221 | H81: 7490.669463 | I81: 8000
A82: 81 | B82: 1 | C82: ='Berechnung niedrig Rückgang'!C82 -> -0.01999243684 | D82: -62.22222222 | E82: 14322.70729 | F82: 0.006981920246 | G82: 0.5173457423 | H82: 7409.791635 | I82: 8100
A83: 82 | B83: 1 | C83: ='Berechnung niedrig Rückgang'!C83 -> -0.03578741708 | D83: -62.22222222 | E83: 13750.13914 | F83: 0.007272653679 | G83: 0.524618396 | H83: 7213.575941 | I83: 8200
A84: 83 | B84: 1 | C84: ='Berechnung niedrig Rückgang'!C84 -> -0.03412840396 | D84: -62.22222222 | E84: 13220.77016 | F84: 0.007563855872 | G84: 0.5321822519 | H84: 7035.859235 | I84: 8300
A85: 84 | B85: 1 | C85: ='Berechnung niedrig Rückgang'!C85 -> 0.01806257175 | D85: -62.22222222 | E85: 13396.22515 | F85: 0.007464789435 | G85: 0.5396470413 | H85: 7229.233269 | I85: 8400
A86: 85 | B86: 1 | C86: ='Berechnung niedrig Rückgang'!C86 -> 0.05610197901 | D86: -62.22222222 | E86: 14082.06688 | F86: 0.007101230297 | G86: 0.5467482716 | H86: 7699.34573 | I86: 8500
A87: 86 | B87: 1 | C87: ='Berechnung niedrig Rückgang'!C87 -> -0.04369962142 | D87: -62.22222222 | E87: 13407.18276 | F87: 0.007458688511 | G87: 0.5542069601 | H87: 7430.354 | I87: 8600
A88: 87 | B88: 1 | C88: ='Berechnung niedrig Rückgang'!C88 -> 0.02243645597 | D88: -62.22222222 | E88: 13644.37416 | F88: 0.007329027983 | G88: 0.5615359881 | H88: 7661.807123 | I88: 8700
A89: 88 | B89: 1 | C89: ='Berechnung niedrig Rückgang'!C89 -> -0.06743285637 | D89: -62.22222222 | E89: 12666.26863 | F89: 0.007894984932 | G89: 0.569430973 | H89: 7212.565672 | I89: 8800
A90: 89 | B90: 1 | C90: ='Berechnung niedrig Rückgang'!C90 -> -0.04700555856 | D90: -62.22222222 | E90: 12011.58617 | F90: 0.008325295144 | G90: 0.5777562682 | H90: 6939.7692 | I90: 8900
A91: 90 | B91: 1 | C91: ='Berechnung niedrig Rückgang'!C91 -> 0.05991290027 | D91: -62.22222222 | E91: 12665.285 | F91: 0.007895598088 | G91: 0.5856518663 | H91: 7417.447795 | I91: 9000
A92: 91 | B92: 1 | C92: ='Berechnung niedrig Rückgang'!C92 -> 0.06585521088 | D92: -62.22222222 | E92: 13433.04013 | F92: 0.007444331218 | G92: 0.5930961975 | H92: 7967.085023 | I92: 9100
A93: 92 | B93: 1 | C93: ='Berechnung niedrig Rückgang'!C93 -> -0.06766327787 | D93: -62.22222222 | E93: 12466.10454 | F93: 0.008021752077 | G93: 0.6011179496 | H93: 7493.599201 | I93: 9200
A94: 93 | B94: 1 | C94: ='Berechnung niedrig Rückgang'!C94 -> 0.02752277045 | D94: -62.22222222 | E94: 12745.27153 | F94: 0.007846047046 | G94: 0.6089639966 | H94: 7761.411486 | I94: 9300
A95: 94 | B95: 1 | C95: ='Berechnung niedrig Rückgang'!C95 -> -0.003718031366 | D95: -62.22222222 | E95: 12635.89333 | F95: 0.007913963612 | G95: 0.6168779602 | H95: 7794.804102 | I95: 9400
A96: 95 | B96: 1 | C96: ='Berechnung niedrig Rückgang'!C96 -> 0.001067080435 | D96: -62.22222222 | E96: 12587.08822 | F96: 0.007944649169 | G96: 0.6248226094 | H96: 7864.697309 | I96: 9500
A97: 96 | B97: 1 | C97: ='Berechnung niedrig Rückgang'!C97 -> 0.02259517022 | D97: -62.22222222 | E97: 12807.86748 | F97: 0.00780770102 | G97: 0.6326303104 | H97: 8102.64518 | I97: 9600
A98: 97 | B98: 1 | C98: ='Berechnung niedrig Rückgang'!C98 -> -0.00016241363 | D98: -62.22222222 | E98: 12743.57519 | F98: 0.007847091455 | G98: 0.6404774019 | H98: 8161.97193 | I98: 9700
A99: 98 | B99: 1 | C99: ='Berechnung niedrig Rückgang'!C99 -> -0.05640802038 | D99: -62.22222222 | E99: 11966.02295 | F99: 0.008356995502 | G99: 0.6488343974 | H99: 7763.967292 | I99: 9800
A100: 99 | B100: 1 | C100: ='Berechnung niedrig Rückgang'!C100 -> -0.06034374456 | D100: -62.22222222 | E100: 11185.48082 | F100: 0.008940161054 | G100: 0.6577745584 | H100: 7357.524708 | I100: 9900
A101: 100 | B101: 1 | C101: ='Berechnung niedrig Rückgang'!C101 -> 0.06652470457 | D101: -62.22222222 | E101: 11863.23009 | F101: 0.008429407441 | G101: 0.6662039659 | H101: 7903.330934 | I101: 10000
A102: 101 | B102: 1 | C102: ='Berechnung niedrig Rückgang'!C102 -> -0.01664447752 | D102: -62.22222222 | E102: 11604.58626 | F102: 0.008617282665 | G102: 0.6748212485 | H102: 7831.021387 | I102: 10100
A103: 102 | B103: 1 | C103: ='Berechnung niedrig Rückgang'!C103 -> -0.06383860779 | D103: -62.22222222 | E103: 10805.51559 | F103: 0.009254532948 | G103: 0.6840757815 | H103: 7391.791518 | I103: 10200
A104: 103 | B104: 1 | C104: ='Berechnung niedrig Rückgang'!C104 -> -0.05990483909 | D104: -62.22222222 | E104: 10099.7181 | F104: 0.00990126645 | G104: 0.6939770479 | H104: 7008.972554 | I104: 10300
A105: 104 | B105: 1 | C105: ='Berechnung niedrig Rückgang'!C105 -> -0.06378043927 | D105: -62.22222222 | E105: 9397.299984 | F105: 0.01064135445 | G105: 0.7046184024 | H105: 6621.510501 | I105: 10400
A106: 105 | B106: 1 | C106: ='Berechnung niedrig Rückgang'!C106 -> 0.05607395613 | D106: -62.22222222 | E106: 9858.532503 | F106: 0.01014349752 | G106: 0.7147618999 | H106: 7046.503422 | I106: 10500
A107: 106 | B107: 1 | C107: ='Berechnung niedrig Rückgang'!C107 -> 0.06298036594 | D107: -62.22222222 | E107: 10413.28549 | F107: 0.009603117107 | G107: 0.724365017 | H107: 7543.019719 | I107: 10600
A108: 107 | B108: 1 | C108: ='Berechnung niedrig Rückgang'!C108 -> -0.03767234829 | D108: -62.22222222 | E108: 9961.114404 | F108: 0.0100390374 | G108: 0.7344040544 | H108: 7315.482805 | I108: 10700
A109: 108 | B109: 1 | C109: ='Berechnung niedrig Rückgang'!C109 -> 0.06625819847 | D109: -62.22222222 | E109: 10554.77494 | F109: 0.009474384866 | G109: 0.7438784393 | H109: 7851.469513 | I109: 10800
A110: 109 | B110: 1 | C110: ='Berechnung niedrig Rückgang'!C110 -> 0.005407302069 | D110: -62.22222222 | E110: 10549.28912 | F110: 0.009479311717 | G110: 0.753357751 | H110: 7947.388729 | I110: 10900
A111: 110 | B111: 1 | C111: ='Berechnung niedrig Rückgang'!C111 -> 0.02348755271 | D111: -62.22222222 | E111: 10733.38244 | F111: 0.009316727562 | G111: 0.7626744786 | H111: 8186.076855 | I111: 11000
A112: 111 | B112: 1 | C112: ='Berechnung niedrig Rückgang'!C112 -> -0.06353472382 | D112: -62.22222222 | E112: 9993.171 | F112: 0.01000683367 | G112: 0.7726813122 | H112: 7721.536481 | I112: 11100
A113: 112 | B113: 1 | C113: ='Berechnung niedrig Rückgang'!C113 -> 0.03716858993 | D113: -62.22222222 | E113: 10300.06814 | F113: 0.009708673636 | G113: 0.7823899859 | H113: 8058.670166 | I113: 11200
A114: 113 | B114: 1 | C114: ='Berechnung niedrig Rückgang'!C114 -> 0.05473284245 | D114: -62.22222222 | E114: 10798.19233 | F114: 0.009260809308 | G114: 0.7916507952 | H114: 8548.397541 | I114: 11300
A115: 114 | B115: 1 | C115: ='Berechnung niedrig Rückgang'!C115 -> 0.02419516632 | D115: -62.22222222 | E115: 10995.72869 | F115: 0.009094440474 | G115: 0.8007452356 | H115: 8804.777357 | I115: 11400
A116: 115 | B116: 1 | C116: ='Berechnung niedrig Rückgang'!C116 -> 0.03719726863 | D116: -62.22222222 | E116: 11340.20304 | F116: 0.008818184264 | G116: 0.8095634199 | H116: 9180.613556 | I116: 11500
A117: 116 | B117: 1 | C117: ='Berechnung niedrig Rückgang'!C117 -> -0.04190471053 | D117: -62.22222222 | E117: 10805.3803 | F117: 0.009254648819 | G117: 0.8188180687 | H117: 8847.640626 | I117: 11600
A118: 117 | B118: 1 | C118: ='Berechnung niedrig Rückgang'!C118 -> -0.02499748574 | D118: -62.22222222 | E118: 10474.60613 | F118: 0.009546898349 | G118: 0.8283649671 | H118: 8676.796765 | I118: 11700
A119: 118 | B119: 1 | C119: ='Berechnung niedrig Rückgang'!C119 -> -0.01849069309 | D119: -62.22222222 | E119: 10219.85172 | F119: 0.009784877783 | G119: 0.8381498449 | H119: 8565.76713 | I119: 11800
A120: 119 | B120: 1 | C120: ='Berechnung niedrig Rückgang'!C120 -> 0.02709297349 | D120: -62.22222222 | E120: 10432.82988 | F120: 0.00958512706 | G120: 0.8477349719 | H120: 8844.274746 | I120: 11900
A121: 120 | B121: 1 | C121: ='Berechnung niedrig Rückgang'!C121 -> 0.01002818406 | D121: -62.22222222 | E121: 10474.60602 | F121: 0.009546898452 | G121: 0.8572818704 | H121: 8979.689841 | I121: 12000
A122: 121 | B122: 1 | C122: ='Berechnung niedrig Rückgang'!C122 -> -0.06976758611 | D122: -62.22222222 | E122: 9685.936915 | F122: 0.01032424647 | G122: 0.8676061168 | H122: 8403.578115 | I122: 12100
A123: 122 | B123: 1 | C123: ='Berechnung niedrig Rückgang'!C123 -> 0.0005259426049 | D123: -62.22222222 | E123: 9628.776214 | F123: 0.01038553579 | G123: 0.8779916526 | H123: 8453.985141 | I123: 12200
A124: 123 | B124: 1 | C124: ='Berechnung niedrig Rückgang'!C124 -> 0.01451968627 | D124: -62.22222222 | E124: 9705.457355 | F124: 0.01030348147 | G124: 0.8882951341 | H124: 8621.310543 | I124: 12300
A125: 124 | B125: 1 | C125: ='Berechnung niedrig Rückgang'!C125 -> 0.06313413911 | D125: -62.22222222 | E125: 10252.05248 | F125: 0.009754144371 | G125: 0.8980492785 | H125: 9206.848333 | I125: 12400
A126: 125 | B126: 1 | C126: ='Berechnung niedrig Rückgang'!C126 -> -0.02224358598 | D126: -62.22222222 | E126: 9963.171893 | F126: 0.01003696424 | G126: 0.9080862427 | H126: 9047.41933 | I126: 12500
A127: 126 | B127: 1 | C127: ='Berechnung niedrig Rückgang'!C127 -> 0.04134071362 | D127: -62.22222222 | E127: 10310.262 | F127: 0.009699074576 | G127: 0.9177853173 | H127: 9462.607077 | I127: 12600
A128: 127 | B128: 1 | C128: ='Berechnung niedrig Rückgang'!C128 -> 0.002494991921 | D128: -62.22222222 | E128: 10273.60855 | F128: 0.009733678241 | G128: 0.9275189955 | H128: 9528.967083 | I128: 12700
A129: 128 | B129: 1 | C129: ='Berechnung niedrig Rückgang'!C129 -> 0.05004317099 | D129: -62.22222222 | E129: 10722.39648 | F129: 0.0093262733 | G129: 0.9368452688 | H129: 10045.22641 | I129: 12800
A130: 129 | B130: 1 | C130: ='Berechnung niedrig Rückgang'!C130 -> -0.0388337427 | D130: -62.22222222 | E130: 10246.19979 | F130: 0.009759715994 | G130: 0.9466049848 | H130: 9699.1038 | I130: 12900
A131: 130 | B131: 1 | C131: ='Berechnung niedrig Rückgang'!C131 -> 0.05508974706 | D131: -62.22222222 | E131: 10745.01032 | F131: 0.009306645319 | G131: 0.9559116301 | H131: =G131*E131 -> 10271.28033 | I131: 13000
A132: 131 | B132: =IF(A132<$M$11*12/2+1,1,0) -> 1 | C132: ='Berechnung niedrig Rückgang'!C132 -> 0.008380041977 | D132: =IF(B132=1,-$M$1,$M$4) -> -62.22222222 | E132: =MAX(IF(A132=$M$5,$M$8,IF(A132=$M$5/2,$M$2,(E131+D132)*(1+C132))),$M$2) -> 10772.31031 | F132: =$M$10/E132 -> 0.009283059726 | G132: =G131+F132 -> 0.9651946899 | H132: 10397.37671 | I132: =$M$10*A132 -> 13100
A133: 132 | B133: 1 | C133: ='Berechnung niedrig Rückgang'!C133 -> -0.05426286528 | D133: -62.22222222 | E133: 10128.92802 | F133: 0.009872713064 | G133: 0.9750674029 | H133: 9876.38754 | I133: 13200
A134: 133 | B134: 1 | C134: ='Berechnung niedrig Rückgang'!C134 -> -0.003413072874 | D134: -62.22222222 | E134: 10032.3474 | F134: 0.0099677569 | G134: 0.9850351598 | H134: 9882.214923 | I134: 13300
A135: 134 | B135: 1 | C135: ='Berechnung niedrig Rückgang'!C135 -> 0.03596926772 | D135: -62.22222222 | E135: 10328.74328 | F135: 0.009681719965 | G135: 0.9947168798 | H135: 10274.17529 | I135: 13400
A136: 135 | B136: 1 | C136: ='Berechnung niedrig Rückgang'!C136 -> 0.06728227888 | D136: -62.22222222 | E136: 10957.27599 | F136: 0.009126355867 | G136: 1.003843236 | H136: 10999.38738 | I136: 13500
A137: 136 | B137: 1 | C137: ='Berechnung niedrig Rückgang'!C137 -> -0.04273678339 | D137: -62.22222222 | E137: 10429.43421 | F137: 0.009588247834 | G137: 1.013431483 | H137: 10569.51699 | I137: 13600
A138: 137 | B138: 1 | C138: ='Berechnung niedrig Rückgang'!C138 -> 0.01588329137 | D138: -62.22222222 | E138: 10531.87744 | F138: 0.009494983261 | G138: 1.022926467 | H138: 10773.33618 | I138: 13700
A139: 138 | B139: 1 | C139: ='Berechnung niedrig Rückgang'!C139 -> 0.03150135082 | D139: -62.22222222 | E139: 10799.4635 | F139: 0.009259719245 | G139: 1.032186186 | H139: 11147.05704 | I139: 13800
A140: 139 | B140: 1 | C140: ='Berechnung niedrig Rückgang'!C140 -> 0.02384454233 | D140: -62.22222222 | E140: 10993.26588 | F140: 0.009096477887 | G140: 1.041282664 | H140: 11447.09718 | I140: 13900
A141: 140 | B141: 1 | C141: ='Berechnung niedrig Rückgang'!C141 -> -0.01242311296 | D141: -62.22222222 | E141: 10795.24607 | F141: 0.009263336784 | G141: 1.050546001 | H141: 11340.90258 | I141: 14000
A142: 141 | B142: 1 | C142: ='Berechnung niedrig Rückgang'!C142 -> 0.001119877742 | D142: -62.22222222 | E142: 10745.04352 | F142: 0.009306616562 | G142: 1.059852617 | H142: 11388.1625 | I142: 14100
A143: 142 | B143: 1 | C143: ='Berechnung niedrig Rückgang'!C143 -> 0.01208770731 | D143: -62.22222222 | E143: 10811.95212 | F143: 0.009249023574 | G143: 1.069101641 | H143: 11559.07575 | I143: 14200
A144: 143 | B144: 1 | C144: ='Berechnung niedrig Rückgang'!C144 -> 0.01351064391 | D144: -62.22222222 | E144: 10894.96567 | F144: 0.009178551182 | G144: 1.078280192 | H144: 11747.82567 | I144: 14300
A145: 144 | B145: 1 | C145: ='Berechnung niedrig Rückgang'!C145 -> -0.01420284136 | D145: -62.22222222 | E145: 10678.88771 | F145: 0.009364271143 | G145: 1.087644463 | H145: 11614.83309 | I145: 14400
A146: 145 | B146: 1 | C146: ='Berechnung niedrig Rückgang'!C146 -> 0.03377216273 | D146: -62.22222222 | E146: 10975.21324 | F146: 0.00911144028 | G146: 1.096755903 | H146: 12037.12991 | I146: 14500
A147: 146 | B147: 1 | C147: ='Berechnung niedrig Rückgang'!C147 -> -0.008754352326 | D147: -62.22222222 | E147: 10817.45485 | F147: 0.009244318686 | G147: 1.106000222 | H147: 11964.10747 | I147: 14600
A148: 147 | B148: 1 | C148: ='Berechnung niedrig Rückgang'!C148 -> 0.001960136022 | D148: -62.22222222 | E148: 10776.31435 | F148: 0.009279610522 | G148: 1.115279833 | H148: 12018.60606 | I148: 14700
A149: 148 | B149: 1 | C149: ='Berechnung niedrig Rückgang'!C149 -> -0.01787049622 | D149: -62.22222222 | E149: 10522.62598 | F149: 0.00950333122 | G149: 1.124783164 | H149: 11835.67254 | I149: 14800
A150: 149 | B150: 1 | C150: ='Berechnung niedrig Rückgang'!C150 -> -0.00427751808 | D150: -62.22222222 | E150: 10415.65919 | F150: 0.009600928578 | G150: 1.134384092 | H150: 11815.3581 | I150: 14900
A151: 150 | B151: 1 | C151: ='Berechnung niedrig Rückgang'!C151 -> -0.04130001249 | D151: -62.22222222 | E151: 9925.839894 | F151: 0.01007471419 | G151: 1.144458807 | H151: 11359.71488 | I151: 15000
A152: 151 | B152: 1 | C152: ='Berechnung niedrig Rückgang'!C152 -> 0.04031701698 | D152: -62.22222222 | E152: 10261.28931 | F152: 0.009745364052 | G152: 1.154204171 | H152: 11843.62292 | I152: 15100
A153: 152 | B153: 1 | C153: ='Berechnung niedrig Rückgang'!C153 -> 0.02128131362 | D153: -62.22222222 | E153: 10416.11664 | F153: 0.009600506935 | G153: 1.163804678 | H153: 12122.32526 | I153: 15200
A154: 153 | B154: 1 | C154: ='Berechnung niedrig Rückgang'!C154 -> -0.0148419561 | D154: -62.22222222 | E154: 10200.22237 | F154: 0.00980370784 | G154: 1.173608385 | H154: 11971.0665 | I154: 15300
A155: 154 | B155: 1 | C155: ='Berechnung niedrig Rückgang'!C155 -> -0.02755555048 | D155: -62.22222222 | E155: 9858.641971 | F155: 0.01014338489 | G155: 1.18375177 | H155: 11670.18489 | I155: 15400
A156: 155 | B156: 1 | C156: ='Berechnung niedrig Rückgang'!C156 -> -0.0613016851 | D156: -62.22222222 | E156: 9195.88271 | F156: 0.01087443187 | G156: 1.194626202 | H156: 10985.64244 | I156: 15500
A157: 156 | B157: 1 | C157: ='Berechnung niedrig Rückgang'!C157 -> 0.006942305703 | D157: -62.22222222 | E157: 9197.069151 | F157: 0.01087302904 | G157: 1.205499231 | H157: 11087.05979 | I157: 15600
A158: 157 | B158: 1 | C158: ='Berechnung niedrig Rückgang'!C158 -> -0.03903213507 | D158: -62.22222222 | E158: 8778.29435 | F158: 0.01139173466 | G158: 1.216890966 | H158: 10682.22709 | I158: 15700
A159: 158 | B159: 1 | C159: ='Berechnung niedrig Rückgang'!C159 -> -0.0003065438176 | D159: -62.22222222 | E159: 8713.40027 | F159: 0.01147657595 | G159: 1.228367542 | H159: 10703.25807 | I159: 15800
A160: 159 | B160: 1 | C160: ='Berechnung niedrig Rückgang'!C160 -> -0.03743361881 | D160: -62.22222222 | E160: 8327.333146 | F160: 0.0120086465 | G160: 1.240376188 | H160: 10329.02575 | I160: 15900
A161: 160 | B161: 1 | C161: ='Berechnung niedrig Rückgang'!C161 -> 0.04711589656 | D161: -62.22222222 | E161: 8654.529035 | F161: 0.01155464377 | G161: 1.251930832 | H161: 10834.87174 | I161: 16000
A162: 161 | B162: 1 | C162: ='Berechnung niedrig Rückgang'!C162 -> 0.03132797137 | D162: -62.22222222 | E162: 8861.486355 | F162: 0.01128478858 | G162: 1.263215621 | H162: 11193.96799 | I162: 16100
A163: 162 | B163: 1 | C163: ='Berechnung niedrig Rückgang'!C163 -> 0.003361840749 | D163: -62.22222222 | E163: 8828.845857 | F163: 0.01132650877 | G163: 1.274542129 | H163: 11252.736 | I163: 16200
A164: 163 | B164: 1 | C164: ='Berechnung niedrig Rückgang'!C164 -> 0.05646595707 | D164: -62.22222222 | E164: 9261.639429 | F164: 0.01079722448 | G164: 1.285339354 | H164: 11904.34964 | I164: 16300
A165: 164 | B165: 1 | C165: ='Berechnung niedrig Rückgang'!C165 -> -0.05921242191 | D165: -62.22222222 | E165: 8654.697434 | F165: 0.01155441895 | G165: 1.296893773 | H165: 11224.22321 | I165: 16400
A166: 165 | B166: 1 | C166: ='Berechnung niedrig Rückgang'!C166 -> -0.01442157783 | D166: -62.22222222 | E166: 8468.558162 | F166: 0.01180838557 | G166: 1.308702158 | H166: 11082.82035 | I166: 16500
A167: 166 | B167: 1 | C167: ='Berechnung niedrig Rückgang'!C167 -> -0.06011777849 | D167: -62.22222222 | E167: 7900.965697 | F167: 0.01265668069 | G167: 1.321358839 | H167: 10440.01086 | I167: 16600
A168: 167 | B168: 1 | C168: ='Berechnung niedrig Rückgang'!C168 -> -0.06473298082 | D168: -62.22222222 | E168: 7331.318244 | F168: 0.01364011173 | G168: 1.334998951 | H168: 9787.302164 | I168: 16700
A169: 168 | B169: 1 | C169: ='Berechnung niedrig Rückgang'!C169 -> 0.01271274324 | D169: -62.22222222 | E169: 7361.506173 | F169: 0.01358417661 | G169: 1.348583127 | H169: 9927.603018 | I169: 16800
A170: 169 | B170: 1 | C170: ='Berechnung niedrig Rückgang'!C170 -> -0.06732563183 | D170: -62.22222222 | E170: 6807.855047 | F170: 0.01468891439 | G170: 1.363272042 | H170: 9280.958451 | I170: 16900
A171: 170 | B171: 1 | C171: ='Berechnung niedrig Rückgang'!C171 -> 0.04564881243 | D171: -62.22222222 | E171: 7053.562952 | F171: 0.01417723223 | G171: 1.377449274 | H171: 9715.925169 | I171: 17000
A172: 171 | B172: 1 | C172: ='Berechnung niedrig Rückgang'!C172 -> -0.06220691789 | D172: -62.22222222 | E172: 6556.430972 | F172: 0.01525220054 | G172: 1.392701475 | H172: 9131.151082 | I172: 17100
A173: 172 | B173: 1 | C173: ='Berechnung niedrig Rückgang'!C173 -> -0.01517538713 | D173: -62.22222222 | E173: 6395.656617 | F173: 0.01563561116 | G173: 1.408337086 | H173: 9007.240402 | I173: 17200
A174: 173 | B174: 1 | C174: ='Berechnung niedrig Rückgang'!C174 -> -0.06427763632 | D174: -62.22222222 | E174: 5926.336202 | F174: 0.01687383175 | G174: 1.425210918 | H174: 8446.279057 | I174: 17300
A175: 174 | B175: 1 | C175: ='Berechnung niedrig Rückgang'!C175 -> -0.008689182503 | D175: -62.22222222 | E175: 5813.159624 | F175: 0.01720234889 | G175: 1.442413266 | H175: 8384.978561 | I175: 17400
A176: 175 | B176: 1 | C176: ='Berechnung niedrig Rückgang'!C176 -> 0.03844262875 | D176: -62.22222222 | E176: 5972.018553 | F176: 0.01674475709 | G176: 1.459158024 | H176: 8714.118788 | I176: 17500
A177: 176 | B177: 1 | C177: ='Berechnung niedrig Rückgang'!C177 -> 0.04250785088 | D177: -62.22222222 | E177: 6161.009072 | F177: 0.01623110741 | G177: 1.475389131 | H177: 9089.88582 | I177: 17600
A178: 177 | B178: 1 | C178: ='Berechnung niedrig Rückgang'!C178 -> -0.06588178478 | D178: -62.22222222 | E178: 5696.987887 | F178: 0.01755313544 | G178: 1.492942266 | H178: 8505.274008 | I178: 17700
A179: 178 | B179: 1 | C179: ='Berechnung niedrig Rückgang'!C179 -> -0.01995329387 | D179: -62.22222222 | E179: 5522.33353 | F179: 0.01810828692 | G179: 1.511050553 | H179: 8344.525135 | I179: 17800
A180: 179 | B180: 1 | C180: ='Berechnung niedrig Rückgang'!C180 -> 0.02691796712 | D180: -62.22222222 | E180: 5607.086404 | F180: 0.01783457446 | G180: 1.528885128 | H180: 8572.591013 | I180: 17900
A181: 180 | B181: 1 | C181: ='Berechnung niedrig Rückgang'!C181 -> 0.04894582094 | D181: -62.22222222 | E181: 4800 | F181: 0.02083333333 | G181: 1.549718461 | H181: 7438.648613 | I181: 18000
A182: 181 | B182: 0 | C182: ='Berechnung niedrig Rückgang'!C182 -> 0.05294199872 | D182: 44.44444444 | E182: 5100.919016 | F182: 0.01960431046 | G182: 1.569322772 | H182: 8004.988368 | I182: 18100
A183: 182 | B183: 0 | C183: ='Berechnung niedrig Rückgang'!C183 -> 0.03111260599 | D183: 44.44444444 | E183: 5305.449126 | F183: 0.01884854564 | G183: 1.588171317 | H183: 8425.962128 | I183: 18200
A184: 183 | B184: 0 | C184: ='Berechnung niedrig Rückgang'!C184 -> 0.05667021199 | D184: 44.44444444 | E184: 5653.073174 | F184: 0.01768949329 | G184: 1.605860811 | H184: 9078.048668 | I184: 18300
A185: 184 | B185: 0 | C185: ='Berechnung niedrig Rückgang'!C185 -> -0.06745385432 | D185: 44.44444444 | E185: 5313.198095 | F185: 0.01882105621 | G185: 1.624681867 | H185: 8632.256599 | I185: 18400
A186: 185 | B186: 0 | C186: ='Berechnung niedrig Rückgang'!C186 -> 0.03016247774 | D186: 44.44444444 | E186: 5519.242313 | F186: 0.018118429 | G186: 1.642800296 | H186: 9067.012904 | I186: 18500
A187: 186 | B187: 0 | C187: ='Berechnung niedrig Rückgang'!C187 -> 0.04448452324 | D187: 44.44444444 | E187: 5811.18471 | F187: 0.01720819506 | G187: 1.660008491 | H187: 9646.61596 | I187: 18600
A188: 187 | B188: 0 | C188: ='Berechnung niedrig Rückgang'!C188 -> 0.02540045286 | D188: 44.44444444 | E188: 6004.364787 | F188: 0.01665455107 | G188: 1.676663042 | H188: 10067.29653 | I188: 18700
A189: 188 | B189: 0 | C189: ='Berechnung niedrig Rückgang'!C189 -> -0.03373450885 | D189: 44.44444444 | E189: 5844.755623 | F189: 0.0171093552 | G189: 1.693772397 | H189: 9899.685742 | I189: 18800
A190: 189 | B190: 0 | C190: ='Berechnung niedrig Rückgang'!C190 -> 0.03776809018 | D190: 44.44444444 | E190: 6111.623907 | F190: 0.01636226337 | G190: 1.71013466 | H190: 10451.69987 | I190: 18900
A191: 190 | B191: 0 | C191: ='Berechnung niedrig Rückgang'!C191 -> -0.06730286358 | D191: 44.44444444 | E191: 5741.747323 | F191: 0.01741630106 | G191: 1.727550961 | H191: 9919.161108 | I191: 19000
A192: 191 | B192: 0 | C192: ='Berechnung niedrig Rückgang'!C192 -> 0.01227244783 | D192: 44.44444444 | E192: 5857.202504 | F192: 0.01707299687 | G192: 1.744623958 | H192: 10218.61582 | I192: 19100
A193: 192 | B193: 0 | C193: ='Berechnung niedrig Rückgang'!C193 -> -0.01151392749 | D193: 44.44444444 | E193: 5833.695813 | F193: 0.01714179196 | G193: 1.76176575 | H193: 10277.60548 | I193: 19200
A194: 193 | B194: 0 | C194: ='Berechnung niedrig Rückgang'!C194 -> 0.06613417059 | D194: 44.44444444 | E194: 6266.886188 | F194: 0.01595688784 | G194: 1.777722638 | H194: 11140.78545 | I194: 19300
A195: 194 | B195: 0 | C195: ='Berechnung niedrig Rückgang'!C195 -> 0.03262974725 | D195: 44.44444444 | E195: 6517.267756 | F195: 0.01534385324 | G195: 1.793066491 | H195: =G195*E195 -> 11685.89443 | I195: 19400
A196: 195 | B196: =IF(A196<$M$11*12/2+1,1,0) -> 0 | C196: ='Berechnung niedrig Rückgang'!C196 -> 0.005566436363 | D196: =IF(B196=1,-$M$1,$M$4) -> 44.44444444 | E196: =MAX(IF(A196=$M$5,$M$8,IF(A196=$M$5/2,$M$2,(E195+D196)*(1+C196))),$M$2) -> 6598.237554 | F196: =$M$10/E196 -> 0.01515556225 | G196: =G195+F196 -> 1.808222054 | H196: 11931.07866 | I196: =$M$10*A196 -> 19500
A197: 196 | B197: 0 | C197: ='Berechnung niedrig Rückgang'!C197 -> -0.008535048896 | D197: 44.44444444 | E197: 6585.986382 | F197: 0.01518375444 | G197: 1.823405808 | H197: 12008.92582 | I197: 19600
A198: 197 | B198: 0 | C198: ='Berechnung niedrig Rückgang'!C198 -> 0.04350095325 | D198: 44.44444444 | E198: 6918.860888 | F198: 0.01445324622 | G198: 1.837859054 | H198: 12715.89113 | I198: 19700
A199: 198 | B199: 0 | C199: ='Berechnung niedrig Rückgang'!C199 -> -0.01765468214 | D199: 44.44444444 | E199: 6840.37039 | F199: 0.01461909141 | G199: 1.852478146 | H199: 12671.63666 | I199: 19800
A200: 199 | B200: 0 | C200: ='Berechnung niedrig Rückgang'!C200 -> -0.0106078863 | D200: 44.44444444 | E200: 6811.781502 | F200: 0.01468044739 | G200: 1.867158593 | H200: 12718.67637 | I200: 19900
... 401 more rows
